Workbook

Sheet AER Sheet Heading (hidden)
B1: =INDEX(dms_Worksheet_List,MATCH(dms_Model,dms_Model_List)) -> REGULATORY REPORTING STATEMENT
B2: =INDEX(dms_TradingNameFull_List,MATCH(dms_TradingName,dms_TradingName_List)) -> Queensland Electricity Transmission Corporation Limited trading as Powerlink Queensland
B3: =dms_Header_Span -> 2020-21 - 2026-27
B4: XX
C11: EXPENDITURE
C12: =CONCATENATE("Forecast ($0's, real ",dms_DollarReal,")") -> Forecast ($0's, real June 2022)
C13: =dms_y1 -> 2020-21 | D13: =dms_y2 -> 2021-22 | E13: =dms_y3 -> 2022-23 | F13: =dms_y4 -> 2023-24 | G13: =dms_y5 -> 2024-25 | H13: =dms_y6 -> 2025-26 | I13: =dms_y7 -> 2026-27
C42: VOLUMES
C43: 0's
C44: =dms_y1 -> 2020-21 | D44: =dms_y2 -> 2021-22 | E44: =dms_y3 -> 2022-23 | F44: =dms_y4 -> 2023-24 | G44: =dms_y5 -> 2024-25 | H44: =dms_y6 -> 2025-26 | I44: =dms_y7 -> 2026-27

Sheet AER CF (hidden)
B1: AER CONDITIONAL FORMATTING
B3: CELLS FLAGED "Y" and greyed out will be greyed out in the worksheets.
B4: CONDITIONAL FORMATTING MAP
F5: =INDEX(dms_CF_3.6.1, MATCH(dms_TradingName,dms_CF_TradingName))="Y" | G5: =INDEX(dms_CF_3.6.5, MATCH(dms_TradingName,dms_CF_TradingName))="Y" | H5: =INDEX(dms_CF_3.6.6.1, MATCH(dms_TradingName,dms_CF_TradingName))="Y" | I5: =INDEX(dms_CF_3.6.6.2, MATCH(dms_TradingName,dms_CF_TradingName))="Y" | J5: =INDEX(dms_CF_3.6.6.3, MATCH(dms_TradingName,dms_CF_TradingName))="Y" | K5: =INDEX(dms_CF_3.6.7.1, MATCH(dms_TradingName,dms_CF_TradingName))="Y" | L5: =INDEX(dms_CF_3.6.7.2, MATCH(dms_TradingName,dms_CF_TradingName))="Y" | M5: =INDEX(dms_CF_3.6.7.3, MATCH(dms_TradingName,dms_CF_TradingName))="Y" | N5: =INDEX(dms_CF_3.6.7.4, MATCH(dms_TradingName,dms_CF_TradingName))="Y" | O5: =INDEX(dms_CF_3.6.8, MATCH(dms_TradingName,dms_CF_TradingName))="Y" | P5: =INDEX(dms_CF_4.1, MATCH(dms_TradingName,dms_CF_TradingName))="Y" | Q5: =INDEX(dms_CF_6.8, MATCH(dms_TradingName,dms_CF_TradingName))="Y" | R5: =INDEX(dms_CF_7.12, MATCH(dms_TradingName,dms_CF_TradingName))="Y" | S5: =INDEX(dms_CF_8.1_A, MATCH(dms_TradingName,dms_CF_TradingName))="Y" | T5: =INDEX(dms_CF_8.1_B, MATCH(dms_TradingName,dms_CF_TradingName))="Y" | U5: =INDEX(dms_CF_8.1_Neg, MATCH(dms_TradingName,dms_CF_TradingName))="Y" -> TRUE | V5: =INDEX(dms_CF_4.4.1_Neg, MATCH(dms_TradingName,dms_CF_TradingName))="Y" | Y5: =INDEX(dms_CF_F10, MATCH(dms_TradingName,dms_CF_TradingName))="Y"
B6: dms_CF_TradingName | C6: JurisdictionList | D6: Sector | E6: Segment | F6: dms_CF_3.6.1 | G6: dms_CF_3.6.5 | H6: dms_CF_3.6.6.1 | I6: dms_CF_3.6.6.2 | J6: dms_CF_3.6.6.3 | K6: dms_CF_3.6.7.1 | L6: dms_CF_3.6.7.2 | M6: dms_CF_3.6.7.3 | N6: dms_CF_3.6.7.4 | O6: dms_CF_3.6.8 | P6: dms_CF_4.1 | Q6: dms_CF_6.8 (set from dms_MAIFI_flag) | R6: dms_CF_7.12 | S6: dms_CF_8.1_A (and 8.4) | T6: dms_CF_8.1_B (and 8.4) | U6: dms_CF_8.1_Neg (and 8.4) | V6: dms_CF_4.4.1 | W6: dms_CF_MAIFI_flag (set from dms_MAIFI_flag) | X6: 9.5 TUOS (set from Jurisdiction) | Y6: dms_CF_F10
B7: Ausgrid | C7: NSW | D7: Electricity | E7: Distribution | G7: Y | H7: N | I7: Y | J7: Y | K7: N | L7: N | M7: N | N7: Y | O7: N | P7: N | Q7: =IFERROR(IF(dms_MAIFI_flag="Yes","N","Y"),"Y") -> Y | R7: Y | S7: N | T7: Y | U7: Y | V7: N | W7: =IFERROR(LEFT(dms_MAIFI_flag),"N") -> N | X7: =IF('AER CF'!$C7="Vic","Y","N") -> N
B8: Ausgrid (Tx Assets) | C8: NSW | D8: Electricity | E8: Distribution | G8: Y | H8: N | I8: Y | J8: Y | K8: N | L8: N | M8: N | N8: Y | O8: N | P8: N | Q8: Y | R8: Y | S8: N | T8: Y | U8: Y | V8: N | W8: =IFERROR(LEFT(dms_MAIFI_flag),"N") -> N | X8: =IF('AER CF'!$C8="Vic","Y","N") -> N
B9: AusNet (D) | C9: Vic | D9: Electricity | E9: Distribution | G9: N | H9: N | K9: N | L9: N | M9: N | N9: N | O9: N | P9: N | Q9: Y | R9: N | S9: N | T9: N | U9: Y | V9: N | W9: =IFERROR(LEFT(dms_MAIFI_flag),"N") -> N | X9: =IF('AER CF'!$C9="Vic","Y","N") -> Y
B10: AusNet (T) | C10: Vic | D10: Electricity | E10: Transmission | G10: N | K10: N | L10: N | M10: N | N10: N | O10: N | P10: Y | Q10: Y | R10: N | S10: N | T10: N | U10: Y | V10: N | W10: N | X10: =IF('AER CF'!$C10="Vic","Y","N") -> Y
B11: Amadeus | C11: NT | D11: Gas | E11: Transmission | G11: N | K11: N | L11: N | M11: N | N11: N | O11: N | P11: Y | Q11: Y | R11: N | S11: N | T11: N | U11: Y | V11: N | W11: N | X11: =IF('AER CF'!$C11="Vic","Y","N") -> N | Y11: N
B12: APA GasNet | C12: Vic | D12: Gas | E12: Transmission | G12: N | K12: N | L12: N | M12: N | N12: N | O12: N | P12: Y | Q12: Y | R12: N | S12: N | T12: N | U12: Y | V12: N | W12: N | X12: =IF('AER CF'!$C12="Vic","Y","N") -> Y | Y12: Y
B13: Australian Distribution Co. | C13: NSW | D13: Electricity | E13: Distribution | F13: N | G13: N | H13: N | I13: N | K13: N | L13: N | M13: N | N13: N | O13: N | P13: N | Q13: Y | R13: N | S13: N | T13: N | U13: N | V13: N | W13: N | X13: =IF('AER CF'!$C13="Vic","Y","N") -> N
B14: Australian Distribution Co. (Vic) | C14: Vic | D14: Electricity | E14: Distribution | F14: N | G14: N | H14: N | I14: N | K14: N | L14: N | M14: N | N14: N | O14: N | P14: N | Q14: Y | R14: N | S14: N | T14: N | U14: N | V14: N | W14: N | X14: =IF('AER CF'!$C14="Vic","Y","N") -> Y
B15: CitiPower | C15: Vic | D15: Electricity | E15: Distribution | G15: N | H15: N | K15: N | L15: N | M15: N | N15: N | O15: N | P15: N | Q15: Y | R15: N | S15: N | T15: N | U15: Y | V15: N | W15: N | X15: =IF('AER CF'!$C15="Vic","Y","N") -> Y
B16: Directlink | C16: Qld | D16: Electricity | E16: Transmission | G16: N | K16: N | L16: N | M16: N | N16: N | O16: N | P16: Y | Q16: Y | R16: N | S16: N | T16: Y | U16: Y | V16: N | W16: N | X16: =IF('AER CF'!$C16="Vic","Y","N") -> N
B17: ElectraNet | C17: SA | D17: Electricity | E17: Transmission | G17: N | K17: N | L17: N | M17: N | N17: N | O17: N | P17: Y | Q17: Y | R17: N | S17: N | T17: Y | U17: Y | V17: N | W17: N | X17: =IF('AER CF'!$C17="Vic","Y","N") -> N
B18: Endeavour Energy | C18: NSW | D18: Electricity | E18: Distribution | G18: Y | H18: N | I18: Y | J18: Y | K18: N | L18: N | M18: N | N18: Y | O18: N | P18: N | Q18: Y | R18: Y | S18: N | T18: Y | U18: Y | V18: Y | W18: N | X18: =IF('AER CF'!$C18="Vic","Y","N") -> N
B19: Energex | C19: Qld | D19: Electricity | E19: Distribution | G19: Y | H19: N | K19: N | L19: N | M19: N | N19: N | O19: N | P19: N | Q19: Y | R19: Y | S19: N | T19: Y | U19: Y | V19: Y | W19: N | X19: =IF('AER CF'!$C19="Vic","Y","N") -> N
B20: Ergon Energy | C20: Qld | D20: Electricity | E20: Distribution | G20: Y | H20: N | I20: Y | J20: Y | K20: N | L20: N | M20: N | N20: N | O20: N | P20: N | Q20: Y | R20: Y | S20: N | T20: Y | U20: Y | V20: N | W20: N | X20: =IF('AER CF'!$C20="Vic","Y","N") -> N
B21: Essential Energy | C21: NSW | D21: Electricity | E21: Distribution | G21: Y | H21: N | I21: Y | J21: Y | K21: N | L21: N | M21: N | N21: Y | O21: N | P21: N | Q21: Y | R21: Y | S21: N | T21: Y | U21: Y | V21: N | W21: N | X21: =IF('AER CF'!$C21="Vic","Y","N") -> N
B22: Evoenergy Distribution | C22: ACT | D22: Electricity | E22: Distribution | G22: Y | H22: N | I22: Y | J22: Y | K22: Y | L22: Y | M22: N | N22: Y | O22: N | P22: Y | Q22: Y | R22: Y | S22: N | T22: Y | U22: Y | V22: N | W22: N | X22: =IF('AER CF'!$C22="Vic","Y","N") -> N
B23: Evoenergy Distribution (Tx Assets) | C23: ACT | D23: Electricity | E23: Distribution | G23: Y | H23: N | I23: Y | J23: Y | K23: Y | L23: Y | M23: N | N23: Y | O23: N | P23: Y | Q23: Y | R23: Y | S23: N | T23: Y | U23: Y | V23: N | W23: N | X23: =IF('AER CF'!$C23="Vic","Y","N") -> N
B24: Jemena Electricity | C24: Vic | D24: Electricity | E24: Distribution | G24: N | H24: N | K24: N | L24: N | M24: N | N24: N | O24: N | P24: N | Q24: Y | R24: N | S24: N | T24: N | U24: Y | V24: N | W24: N | X24: =IF('AER CF'!$C24="Vic","Y","N") -> Y
B25: Murraylink | C25: SA | D25: Electricity | E25: Transmission | G25: N | K25: N | L25: N | M25: N | N25: N | O25: N | P25: Y | Q25: Y | R25: N | S25: N | T25: Y | U25: Y | V25: N | W25: N | X25: =IF('AER CF'!$C25="Vic","Y","N") -> N
B26: Power and Water | C26: NT | D26: Electricity | E26: Distribution | G26: N | H26: N | K26: N | L26: Y | M26: N | N26: N | O26: N | P26: Y | Q26: Y | R26: Y | S26: Y | T26: Y | U26: Y | V26: N | W26: N | X26: =IF('AER CF'!$C26="Vic","Y","N") -> N
B27: Powercor Australia | C27: Vic | D27: Electricity | E27: Distribution | G27: N | H27: N | K27: N | L27: N | M27: N | N27: N | O27: N | P27: N | Q27: Y | R27: N | S27: N | T27: N | U27: Y | V27: N | W27: N | X27: =IF('AER CF'!$C27="Vic","Y","N") -> Y
B28: Powerlink | C28: Qld | D28: Electricity | E28: Transmission | G28: N | K28: N | L28: N | M28: N | N28: N | O28: N | P28: Y | Q28: Y | R28: N | S28: N | T28: Y | U28: Y | V28: N | W28: N | X28: =IF('AER CF'!$C28="Vic","Y","N") -> N
B29: Roma to Brisbane Pipeline | C29: Qld | D29: Gas | E29: Transmission | G29: N | K29: N | L29: N | M29: N | N29: N | O29: N | P29: Y | Q29: Y | R29: N | S29: N | T29: N | U29: Y | V29: N | W29: N | X29: =IF('AER CF'!$C29="Vic","Y","N") -> N | Y29: Y
B30: SA Power Networks | C30: SA | D30: Electricity | E30: Distribution | G30: Y | H30: N | K30: N | L30: N | M30: N | N30: N | O30: N | P30: N | Q30: Y | R30: Y | S30: N | T30: Y | U30: N | V30: N | W30: N | X30: =IF('AER CF'!$C30="Vic","Y","N") -> N
B31: TasNetworks (D) | C31: Tas | D31: Electricity | E31: Distribution | G31: Y | H31: N | K31: N | L31: N | M31: N | N31: N | O31: N | P31: N | Q31: Y | R31: Y | S31: N | T31: Y | U31: Y | V31: N | W31: N | X31: =IF('AER CF'!$C31="Vic","Y","N") -> N
B32: TasNetworks (T) | C32: Tas | D32: Electricity | E32: Transmission | G32: N | K32: N | L32: N | M32: N | N32: N | O32: N | P32: Y | Q32: Y | R32: N | S32: N | T32: Y | U32: Y | V32: N | W32: N | X32: =IF('AER CF'!$C32="Vic","Y","N") -> N
B33: TransGrid | C33: NSW | D33: Electricity | E33: Transmission | G33: N | K33: N | L33: N | M33: N | N33: N | O33: N | P33: Y | Q33: Y | R33: N | S33: N | T33: Y | U33: Y | V33: N | W33: N | X33: =IF('AER CF'!$C33="Vic","Y","N") -> N
B34: United Energy | C34: Vic | D34: Electricity | E34: Distribution | G34: N | H34: N | K34: N | L34: N | M34: N | N34: N | O34: N | P34: N | Q34: Y | R34: N | S34: N | T34: N | U34: Y | V34: N | W34: N | X34: =IF('AER CF'!$C34="Vic","Y","N") -> Y
B37: Confidential
B38: Amended
B40: Worksheet 6.2 STPIS reliability
B41: Formula | F41: Applied to:
B43: =INDEX(dms_CBD_flag,MATCH(dms_TradingName,dms_TradingName_List))="NO" | F43: $D$11,$D$17,$D$23,$D$33,$D$39,$D$45,$D$55,$D$61,$D$67,$D$77,$D$83,$D$89
B44: =INDEX(dms_Urban_flag,MATCH(dms_TradingName,dms_TradingName_List))="NO" | F44: $D$12,$D$18,$D$24,$D$56,$D$62,$D$78,$D$68,$D$84
B45: =INDEX(dms_ShortRural_flag,MATCH(dms_TradingName,dms_TradingName_List))="NO" | F45: $D$13,$D$19,$D$25,$D$57,$D$63,$D$69,$D$79,$D$85
B46: =INDEX(dms_LongRural_flag,MATCH(dms_TradingName,dms_TradingName_List))="NO" | F46: $D$14,$D$20,$D$26,$D$58,$D$64,$D$65,$D$70,$D$71,$D$80,$D$86
B47: =INDEX(dms_FeederType_5_flag,MATCH(dms_TradingName,dms_TradingName_List))="NO" | F47: $D$87,$D$81,$D$71,$D$65,$D$59,$D$49,$D$43,$D$37,$D$21,$D$15
B48: =dms_MAIFI_Flag="No" | F48: $D$55:$D$72
B51: Business & other details
B52: =(INDEX(dms_Model_Span,MATCH(dms_Model,dms_Model_List))>1)
B53: =(INDEX(dms_Model_Span,MATCH(dms_Model,dms_Model_List))=1)
B56: STYLES IN USE
B57: HEADING ONE | C57: dms_1
B58: HEADING TWO | C58: dms_2
B59: HEADING THREE | C59: dms_3
B60: HEADING FOUR | C60: dms_4
B61: HEADING FIVE | C61: dms_5
B62: 5.111 | C62: dms_NUM
B63: 0.0545 | C63: dms_NUM%
B64: 5.5555 | C64: dms_NUM3d
B65: Text description | C65: dms_Row_Locked
B66: Text description | C66: dms_Row1
B67: Text description | C67: dms_Row2
B68: Total | C68: dms_T1
B69: Total | C69: dms_T2
B70: EXPENSES | C70: dms_BH
B71: 2019 | C71: dms_BY1
B72: 2019 | C72: dms_BY2
B73: VOLUMES | C73: dms_GH
B74: 2019 | C74: dms_GY1
B75: 2019 | C75: dms_GY2

Sheet AER NRs (hidden)
B1: AER NAMED RANGES
B3: DROP DOWN SELECTORS USED IN WORKBOOKS
B5: COVER SHEET | C5: dms_DataQuality_List | D5: dms_Confid_status_List
C6: -- select -- | D6: -- select --
C7: Actual | D7: Public
C8: Estimate | D8: Confidential
C9: Consolidated
C12: For all files either AER or business needs to be able to specify the type of submission | D12: For PTRM & RFM templates we must provide a choice in case they change their form of control - otherwise it is drawn from the business specific lookup table above.
C13: dms_SourceList | D13: dms_FormControl_Choices
C14: -- select -- | D14: Revenue cap
C15: After appeal | D15: Revenue yield
C16: Draft decision | D16: Tariff cap
C17: Final decision | D17: Weighted average price cap
C18: PTRM update 1
C19: PTRM update 2
C20: PTRM update 3
C21: PTRM update 4
C22: PTRM update 5
C23: PTRM update 6
C24: PTRM update 7
C25: Recast
C26: Regulatory proposal
C27: Reporting
C28: Revised regulatory proposal
K31: This is used to create an image to insert on 6.3 STPIS sheet - not for dropdown lists. | N31: GAS
B32: CA & RESET RINS DNSP | C32: dms_DNSP_020301_SubstationType | D32: dms_DNSP_020301_ProjectType | E32: dms_DNSP_020301_ProjectTrigger | F32: dms_DNSP_020302_ProjectType | G32: dms_DNSP_020302_ProjectTrigger | H32: dms_STPIS_Exclusion_List | I32: dms_Reason_Interruption | J32: dms_Reason_Interruption_Detailed | K32: Reason for interruption | N32: dms_N0205_AssetType
C33: Subtransmission substation | D33: New substation establishment | E33: Demand growth | F33: New line on new route - single circuit | G33: Demand growth | H33: Weather | I33: Animal | J33: Animal impact | K33: Animal | L33: Animal impact | N33: Cast Iron
C34: Zone substation | D34: Substation upgrade - capacity | E34: Voltage issues | F34: New line on new route - dual circuit | G34: Voltage issues | H34: Equipment failure | I34: Asset failure | J34: Animal nesting/burrowing, etc and other | L34: Animal nesting/burrowing, etc and other | N34: PVC
C35: Switching station | D35: Substation upgrade - voltage | E35: Reactive power issue | F35: New line on new route - other | G35: Reactive power issue | H35: Operational error | I35: Other | J35: Other | L35: Other | N35: Polyamide
C36: Other | D36: Other | E36: Fault level issues | F36: Line rebuild over existing route - single circuit | G36: Fault level issues | H36: Vegetation | I36: Overloads | J36: LV | K36: Asset failure | L36: LV | N36: High density polyethylene (80)
E37: Safety | F37: Line rebuild over existing route - dual circuit | G37: Net market benefit | H37: Animals | I37: Planned | J37: Distribution substation | L37: Distribution substation | N37: High density polyethylene (100)
E38: Environment | F38: Reconductor - Single circuit | G38: Safety | H38: Third party impacts | I38: Network business | J38: HV | L38: HV | N38: High density polyethylene (250)
E39: Other | F39: Reconductor - Dual circuit | G39: Environment | H39: Transmission failure | I39: Third party | J39: Zone substation | L39: Zone substation | N39: High density polyethylene (575)
F40: Reconductor - Other | G40: Other | H40: Load shedding | I40: Unknown | J40: Subtransmission | L40: Subtransmission | N40: Medium density polyethylene
F41: Line upgrade - raising/retensoring | H41: Inter-distributor connection failure | I41: Vegetation | J41: insert description of 'other' | K41: Other | L41: insert description of 'other' | N41: Unprotected steel
F42: Line upgrade - voltage upgrade | H42: Other | I42: Weather | J42: Network error | K42: Overloads | N42: Protected steel
F43: Line upgrade - capacity | I43: 2 - STPIS Exclusion (3.3)(a) | J43: Switching and protection error | K43: Planned | N43: Other
F44: String spare circuit | I44: 3 - STPIS Exclusion (3.3)(a) | J44: Fire | K44: Network business | L44: Network error
F45: Other | I45: 4 - STPIS Exclusion (3.3)(a) | J45: Other | L45: Switching and protection error
I46: 5 - STPIS Exclusion (3.3)(a) | J46: Dig-in | K46: Third party | L46: Fire
I47: 6 - STPIS Exclusion (3.3)(a) | J47: Unauthorised access | L47: Other
I48: 7 - STPIS Exclusion (3.3)(a) | J48: Vehicle impact | L48: Dig-in
J49: Unknown | L49: Unauthorised access
J50: Blow-in/Fall-in - NSP responsibility | L50: Vehicle impact
J51: Grow-in - NSP responsibility | K51: Unknown | L51: Unknown
J52: Blow-in/Fall-in - Other responsible party | K52: Vegetation | L52: Blow-in/Fall-in - NSP responsibility
J53: Grow-in - Other responsible party | L53: Grow-in - NSP responsibility
L54: Blow-in/Fall-in - Other responsible party
L55: Grow-in - Other responsible party
K56: Weather
K57: 2 - STPIS Exclusion (3.3)(a)
K58: 3 - STPIS Exclusion (3.3)(a)
K59: 4 - STPIS Exclusion (3.3)(a)
K60: 5 - STPIS Exclusion (3.3)(a)
K61: 6 - STPIS Exclusion (3.3)(a)
K62: 7 - STPIS Exclusion (3.3)(a)
B65: CA & RESET RINS TNSP | C65: dms_TNSP_0203_SubstationType | D65: dms_TNSP_020301_ProjectType | E65: dms_TNSP_020301_ProjectTrigger | F65: dms_TNSP_020302_ProjectType | G65: dms_TNSP_0203_ProjectTrigger
C66: Terminal station | D66: New substation establishment | E66: Demand growth | F66: New line on new route - single circuit | G66: Demand growth
C67: Switching station | D67: Capacity upgrade | E67: Voltage issues | F67: New line on new route - dual circuit | G67: Voltage issues
C68: Transmission substation | D68: Voltage upgrade | E68: Reactive power issue | F68: New line on new route - other | G68: Reactive power issue
C69: Other | D69: Other | E69: Fault level issues | F69: Line rebuild over existing route - single circuit | G69: Fault level issues
E70: Net market benefit | F70: Line rebuild over existing route - dual circuit | G70: Net market benefit
E71: Safety | F71: Reconductor - Single circuit | G71: Safety
E72: Environment | F72: Reconductor - Dual circuit | G72: Environment
E73: Other | F73: Reconductor - Other | G73: Other
F74: Line upgrade - raising/retensoring
F75: Line upgrade - voltage upgrade
F76: Line upgrade - capacity
F77: String spare circuit
F78: Other
B82: NAMED RANGES USED IN ETL PROCESS
M83: GAS ARR & RESET
B84: CA & RESET RINS DNSP ONLY | C84: dms_020303_01_UOM | D84: dms_020501_01_UOM | E84: dms_020501_02_UOM | F84: dms_020501_03_UOM | G84: dms_020501_04_UOM | H84: dms_020701_01_UOM | I84: dms_020701_02_UOM | J84: dms_020701_01_Rows | K84: dms_040102_01_UOM | L84: dms_040102_04_UOM | M84: dms_S140101_UOM | N84: dms_S140201_UOM | O84: dms_E050201_UOM | P84: dms_E050202_UOM
C85: Circuit line length in km | D85: 0's | E85: 0's | F85: 0's | G85: 0's | H85: km | I85: km | J85: Route line length within zone | K85: 0's | L85: days | M85: number | N85: number per km | O85: per metre per connection | P85: metres per connection
C86: Circuit line length in km | D86: 0's | E86: 0's | F86: 0's | G86: 0's | H86: 0's | I86: 0's | J86: Number of maintenance spans | K86: 0's | L86: 0's | M86: number | N86: number | O86: per service per connection | P86: number per connection
C87: Circuit line length in km | D87: MVA added | E87: MVA added | F87: MVA added | G87: MVA added | H87: km | I87: km | J87: Total length of maintenance spans | K87: 0's | L87: $0s | M87: number | N87: number | O87: number per connection | P87: number per connection
C88: Circuit line length in km | D88: 0's | E88: 0's | F88: 0's | G88: 0's | H88: km | I88: km | J88: Length of vegetation corridors | K88: $0s | L88: 0's | M88: km
C89: Number | D89: total spend $0s | E89: total spend $0s | F89: total spend $0s | G89: total spend $0s | H89: 0's | I89: 0's | J89: Average number of trees per maintenance span
C90: Number | D90: net circuit km added | E90: net circuit km added | F90: net circuit km added | G90: net circuit km added | H90: years | I90: years | J90: Average frequency of cutting cycle
C91: Number | D91: total spend $0s | E91: total spend $0s | F91: total spend $0s | G91: total spend $0s
D92: net circuit km added | E92: net circuit km added | F92: net circuit km added | G92: net circuit km added
D93: total spend $0s | E93: total spend $0s | F93: total spend $0s | G93: total spend $0s
D94: 0's | F94: $0s
D95: 0's
D96: 0's
D97: $0s
B100: CA & RESET RINS TNSP ONLY | C100: dms_020701_01_UOM
C101: km
C102: 0's
C103: km
C104: 0's
C105: km
C106: metres
C107: years
B110: CA & RESET RINS DNSP & TNSP | C110: dms_020603_01_UOM
C111: 0's
C112: 0's
C113: 0's
C114: 0's
C115: (per cent)
B118: EB & RESET RINS DNSP ONLY | C118: dms_030601_01_UOM | D118: dms_030601_02_UOM | E118: dms_030701_01_UOM | F118: dms_030702_01_UOM | G118: dms_030703_01_UOM
C119: minutes/customer | D119: minutes/customer | E119: Customer / km | F119: % | G119: km
C120: minutes/customer | D120: minutes/customer | E120: MWh/customer | F120: Number of spans
C121: interruptions/customer | D121: interruptions/customer | E121: kVA / customer | F121: Number of spans
C122: interruptions/customer | D122: interruptions/customer | F122: Number of spans
F123: Number of spans
F124: Years
F125: Years
F126: Trees
F127: Trees
F128: Defects
F129: Defects
F130: Spans
F131: km
F132: Spans
C134: WHEN INSERTING COVER SHEET INTO A TNSP FILE - APPLY THESE NAMED RANGES
B135: EB & RESET RINS TNSP ONLY | C135: dms_030601_01_UOM | E135: dms_030701_01_UOM | F135: dms_030702_01_UOM
C136: % | E136: Number of spans | F136: km
C137: number | E137: Years | F137: %
C138: number | E138: Trees | F138: km
C139: % | E139: Defects | F139: number
C140: number | E140: Number of spans
C141: number | E141: km
C142: % | E142: km
C143: number | E143: Number of spans
C144: number
C145: %
C146: number
C147: %
C148: number
C149: %
C150: number
B152: EB & RESET RINS DNSP & TNSP | C152: dms_EB_RAB_PIT
C153: Beginning of year
C154: End of year
C155: End of year
C156: End of year
C157: End of year
C158: End of year
B160: ARR DNSP ONLY | C160: dms_030605_UOM | D160: dms_03060703_UOM | E160: dms_E020202_UOM | F160: Spare
C161: number | D161: number | E161: Length of mains replaced
C162: number | D162: number | E162: Number of services replaced
C163: number | D163: number
C164: number | D164: number
C165: number | D165: (per cent)
C166: number
C167: number
C168: number
C169: number
C170: number
C171: number
C172: number
C173: (per cent)
C174: (per cent)
B176: RFM | C176: dms_Beg | D176: dms_Mid | E176: dms_End
C177: Beginning of year | D177: Mid year | E177: End of Year
B179: PTRM | C179: dms_PTRM_RAB_PIT | D179: dms_PTRM_TAB_PIT | E179: DMS_Xfactor
C180: Beginning of year | D180: Beginning of year | E180: x factors
C181: End of year | D181: End of year
C182: End of year | D182: End of year
C183: End of year | D183: End of year
C184: End of year
B187: STPIS & MIC NAMED RANGES
B189: These "row descriptions" are the column headings in the various templates but become row descriptions in the ETL process
B191: Table 6.3 sustained interruptions - row descriptions | C191: dms_060301_CustNo_Affected_Row | D191: dms_060301_Avg_Duration_Sustained_Int_Row | E191: dms_060301_Effect_unplanned_SAIDI_Row | F191: dms_060301_Effect_unplanned_SAIFI_Row
C192: Number of customers affected by the interruption | D192: Average duration of sustained customer interruption | E192: Effect on unplanned SAIDI | F192: Effect on unplanned SAIFI
B195: Table 6.1 telephone answering - row descriptions and start date | C195: dms_060101_Rows | D195: dms_060102_Rows | E195: dms_060101_StartDateTxt
C196: Total number of calls (after removing excluded events) | D196: Number of calls answered within 30 seconds (after excluding excluded events) | E196: =dms_060701_StartDateTxt -> 1-Jul-2015
B199: Table 6.8.1 - row descriptions | C199: dms_060801_01_Rows | D199: dms_060801_02_Rows | E199: dms_060801_03_Rows | F199: dms_060801_04_Rows
C200: Number of interruptions | D200: Duration of interruptions | E200: Total unplanned minutes off supply | F200: Effect on unplanned MAIFI
B203: Table 7.9.4 - market impact component - row descriptions | C203: dms_070904_01_Rows | D203: without exclusions | E203: with exclusions
B206: These headings (Lists) are determined from the INDEX/MATCH function on the NSP selected on the Business & other details sheet
B208: Table 6.7.1 - daily performance data - unplanned - MAIFI -- row descriptions and header named range values | C208: dms_060701_Feeder_Header_Lvl4 | D208: =INDEX(dms_FeederName_1,MATCH(dms_TradingName,dms_TradingName_List)) -> CBD | E208: =INDEX(dms_FeederName_1,MATCH(dms_TradingName,dms_TradingName_List)) -> CBD | F208: =INDEX(dms_FeederName_2,MATCH(dms_TradingName,dms_TradingName_List)) -> Urban | G208: =INDEX(dms_FeederName_2,MATCH(dms_TradingName,dms_TradingName_List)) -> Urban | H208: =INDEX(dms_FeederName_3,MATCH(dms_TradingName,dms_TradingName_List)) -> Short rural | I208: =INDEX(dms_FeederName_3,MATCH(dms_TradingName,dms_TradingName_List)) -> Short rural | J208: =INDEX(dms_FeederName_4,MATCH(dms_TradingName,dms_TradingName_List)) -> Long rural | K208: =INDEX(dms_FeederName_4,MATCH(dms_TradingName,dms_TradingName_List)) -> Long rural | L208: =IF((INDEX(dms_FeederName_5,MATCH(dms_TradingName,dms_TradingName_List))=0),"Network",(INDEX(dms_FeederName_5,MATCH(dms_TradingName,dms_TradingName_List)))) -> Network | M208: =IF((INDEX(dms_FeederName_5,MATCH(dms_TradingName,dms_TradingName_List))=0),"Network",(INDEX(dms_FeederName_5,MATCH(dms_TradingName,dms_TradingName_List)))) -> Network | N208: Network | O208: Network
C210: dms_060701_Rows | D210: All events | E210: After removing excluded events | F210: All events | G210: After removing excluded events | H210: All events | I210: After removing excluded events | J210: All events | K210: After removing excluded events | L210: All events | M210: After removing excluded events | N210: All events | O210: After removing excluded events
D211: the number of column headings changes from 10 to 12 depending on the number of feeder categories for the NSP
C213: dms_0603_FeederList | D213: =INDEX(dms_FeederName_1,MATCH(dms_TradingName,dms_TradingName_List)) -> CBD | E213: =INDEX(dms_FeederName_2,MATCH(dms_TradingName,dms_TradingName_List)) -> Urban | F213: =INDEX(dms_FeederName_3,MATCH(dms_TradingName,dms_TradingName_List)) -> Short rural | G213: =INDEX(dms_FeederName_4,MATCH(dms_TradingName,dms_TradingName_List)) -> Long rural
B216: Use these to add to specific worksheets in existing files | C216: Use these to add to specific worksheets in existing files
B219: ARRs 6.7 STPIS daily performance | C219: dms_060101_Values | D219: dms_060102_Values | E219: dms_060701_Values
C220: dms_LeapYear
B223: ARR's 6.8 STPIS exclusions | C223: dms_060801_Event_Date | D223: dms_060801_OutageID | E223: dms_060801_FeederID | F223: dms_060801_FeederClass | G223: dms_060801_CauseID | H223: dms_060801_01_Values | I223: dms_060801_02_Values | J223: dms_060801_03_Values | K223: dms_060801_Excl_Cat | L223: dms_060801_04_Values
C224: dms_060801_StartCell
B227: CA 6.3 sustained interruptions | C227: dms_060301_Event_Date | D227: dms_060301_Event_Time | E227: dms_060301_AssetID | F227: dms_060301_FeederClass | G227: dms_060301_Reason | H227: dms_060301_DetailedReason | I227: dms_060301_CustNo_Affected_Values | J227: dms_060301_Avg_Duration_Sustained_Int_Values | K227: dms_060301_Effect_unplanned_SAIDI_Values | L227: dms_060301_Effect_unplanned_SAIFI_Values | M227: dms_060301_MED

Sheet AER lookups (hidden)
B1: AER LOOKUP TABLES
B3: Data in these columns used for data validation and database purposes.
B4: Date last modified: | C4: 2017-01-16 | D4: added (Albury and Victora) for AGN
C5: 2016-10-17 | D5: updated TransGrid's correct legal name, corrected TasNetworks (T) to June financial year
C6: 2017-02-01 | D6: inserted Power and Water, added NRs (dms_FeederCat_1 and dms_FeederCat_2)
C7: 2017-03-03 | D7: inserted AEMO as a business
C8: 2018-03-28 | D8: major changes to accommodate STPIS
C9: Template Version | D9: 5
Z11: FOR ELECTRICITY BUSINESSES ONLY
Z12: Feeder Types | AD12: TasNetworks (D) | AE12: Feeder Names
Z14: CBD | AA14: Urban | AB14: Short rural | AC14: long rural | AD14: EXTRA
B15: dms_TradingName_List | C15: dms_TradingNameFull_List | D15: dms_ABN_List | E15: dms_JurisdictionList | F15: dms_Sector_List | G15: dms_Segment_List | H15: dms_FormControl_List | I15: dms_RPT_List | J15: dms_RPTMonth_List | K15: dms_CRCPlength_List | L15: dms_FRCPlength_List | M15: dms_PRCPlength_List | N15: dms_663_List | O15: dms_DeterminationRef_List | P15: dms_Addr1_List | Q15: dms_Addr2_List | R15: dms_Suburb_List | S15: dms_State_List | T15: dms_PostCode_List | U15: dms_PAddr1_List | V15: dms_PAddr2_List | W15: dms_PSuburb_List | X15: dms_PState_List | Y15: dms_PPostCode_List | Z15: dms_CBD_flag | AA15: dms_Urban_flag | AB15: dms_ShortRural_flag | AC15: dms_LongRural_flag | AD15: dms_FeederType_5_flag | AE15: dms_FeederName_1 | AF15: dms_FeederName_2 | AG15: dms_FeederName_3 | AH15: dms_FeederName_4 | AI15: dms_FeederName_5 | AJ15: dms_Public_Lighting_List | AK15: Name
B16: AusNet (T) | C16: AusNet Transmission Group Pty Ltd | D16: 78079798173 | E16: Vic | F16: Electricity | G16: Transmission | H16: Revenue cap | I16: Financial | J16: March | K16: 5 | L16: 5 | M16: 5 | N16: 2 | O16: transmission determination | P16: Level 32 | Q16: 2 Southbank Boulevard | R16: SOUTHBANK | S16: Vic | T16: 3006 | U16: Locked Bag 14051 | W16: MELBOURNE CITY MAIL CENTRE | X16: Vic | Y16: 8001 | Z16: NO | AA16: NO | AB16: NO | AC16: NO | AD16: NO | AE16: CBD | AF16: Urban | AG16: Short rural | AH16: Long rural | AJ16: NO | AK16: =B16 -> AusNet (T)
B17: Powerlink | C17: Queensland Electricity Transmission Corporation Limited trading as Powerlink Queensland | D17: 82078849233 | E17: Qld | F17: Electricity | G17: Transmission | H17: Revenue cap | I17: Financial | J17: June | K17: 5 | L17: 5 | M17: 5 | N17: 5 | O17: transmission determination | P17: 33 Harold St | R17: VIRGINIA | S17: Qld | T17: 4014 | U17: PO Box 1193 | W17: VIRGINIA | X17: QLD | Y17: 4014 | Z17: NO | AA17: NO | AB17: NO | AC17: NO | AD17: NO | AE17: CBD | AF17: Urban | AG17: Short rural | AH17: Long rural | AJ17: NO | AK17: Powerlink
B22: The Reg Year Ending (dms_RYE) must be set to the last year of the regulatory period. For forecast data is is usually (FRCP_y5) for actual it is a single year (CRY). For historical actual data the RYE will need to be set manually in the business details sheet by setting the dms_Multiyear_flag to 1 and putting the correct value in 'dms_Specified_FinalYear. See cells C67:C68
B23: dms_Model_List | C23: dms_Model_Name_Format1 | D23: dms_Worksheet_List | E23: dms_Model_Span_List
B24: ARR | C24: Annual Reporting | D24: =IF(dms_MultiYear_ResponseFlag="yes","NEW HISTORICAL ANNUAL REPORTING","ANNUAL REPORTING") -> ANNUAL REPORTING | E24: 1
B25: CA | C25: Category Analysis | D25: =IF(dms_MultiYear_ResponseFlag="yes","NEW HISTORICAL CATEGORY ANALYSIS","CATEGORY ANALYSIS") -> CATEGORY ANALYSIS | E25: 1
B26: CESS | C26: Capitlal Expenditure | D26: CAPITLAL EXPENDITURE SHARING SCHEMING | E26: 5
B27: CPI | C27: CPI | D27: CPI | E27: 5
B28: EB | C28: Economic Benchmarking | D28: =IF(dms_MultiYear_ResponseFlag="yes","NEW HISTORICAL ECONOMIC BENCHMARKING","ECONOMIC BENCHMARKING") -> ECONOMIC BENCHMARKING | E28: 1
B29: Pricing | C29: Pricing Proposal | D29: PRICING PROPOSAL | E29: 5
B30: PTRM | C30: Post Tax Revenue Model | D30: POST TAX REVENUE MODEL | E30: 5
B31: Reset | C31: Regulatory Reporting (Reset) | D31: REGULATORY REPORTING STATEMENT | E31: 5
B32: RFM | C32: Roll Forward Model | D32: ROLL FORWARD MODEL | E32: 5
B33: WACC | C33: Weighted Average Cost of Capital | D33: WEIGHTED AVERAGE COST OF CAPITAL | E33: 1
B37: Financial | C37: Calendar | E37: PREVIOUS | G37: CURRENT | I37: FORTHCOMING
B38: 1987-88 | C38: 1988 | D38: PRCP_y1 | E38: =INDEX(INDIRECT(dms_RPT),dms_PRCP_start_row) -> 2012-13 | F38: CRCP_y1 | G38: =INDEX(INDIRECT(dms_RPT),dms_CRCP_start_row) -> 2017-18 | H38: =FRCP_y1 -> 2022-23 | I38: =INDEX(INDIRECT(dms_RPT),dms_FRCP_start_row) -> 2022-23
B39: 1988-89 | C39: 1989 | D39: PRCP_y2 | E39: =INDEX(INDIRECT(dms_RPT),dms_PRCP_start_row+1) -> 2013-14 | F39: CRCP_y2 | G39: =INDEX(INDIRECT(dms_RPT),dms_CRCP_start_row+1) -> 2018-19 | H39: FRCP_y2 | I39: =INDEX(INDIRECT(dms_RPT),dms_FRCP_start_row+1) -> 2023-24
B40: 1989-90 | C40: 1990 | D40: PRCP_y3 | E40: =INDEX(INDIRECT(dms_RPT),dms_PRCP_start_row+2) -> 2014-15 | F40: CRCP_y3 | G40: =INDEX(INDIRECT(dms_RPT),dms_CRCP_start_row+2) -> 2019-20 | H40: FRCP_y3 | I40: =INDEX(INDIRECT(dms_RPT),dms_FRCP_start_row+2) -> 2024-25
B41: 1990-91 | C41: 1991 | D41: PRCP_y4 | E41: =INDEX(INDIRECT(dms_RPT),dms_PRCP_start_row+3) -> 2015-16 | F41: CRCP_y4 | G41: =INDEX(INDIRECT(dms_RPT),dms_CRCP_start_row+3) -> 2020-21 | H41: FRCP_y4 | I41: =INDEX(INDIRECT(dms_RPT),dms_FRCP_start_row+3) -> 2025-26
B42: 1991-92 | C42: 1992 | D42: PRCP_y5 | E42: =INDEX(INDIRECT(dms_RPT),dms_PRCP_start_row+4) -> 2016-17 | F42: CRCP_y5 | G42: =INDEX(INDIRECT(dms_RPT),dms_CRCP_start_row+4) -> 2021-22 | H42: FRCP_y5 | I42: =INDEX(INDIRECT(dms_RPT),dms_FRCP_start_row+4) -> 2026-27
B43: 1992-93 | C43: 1993 | D43: PRCP_y6 | E43: =INDEX(INDIRECT(dms_RPT),dms_PRCP_start_row+5) -> 2017-18 | F43: CRCP_y6 | G43: =INDEX(INDIRECT(dms_RPT),dms_CRCP_start_row+5) -> 2022-23 | H43: FRCP_y6 | I43: =INDEX(INDIRECT(dms_RPT),dms_FRCP_start_row+5) -> 2027-28
B44: 1993-94 | C44: 1994 | D44: PRCP_y7 | E44: =INDEX(INDIRECT(dms_RPT),dms_PRCP_start_row+6) -> 2018-19 | F44: CRCP_y7 | G44: =INDEX(INDIRECT(dms_RPT),dms_CRCP_start_row+6) -> 2023-24 | H44: FRCP_y7 | I44: =INDEX(INDIRECT(dms_RPT),dms_FRCP_start_row+6) -> 2028-29
B45: 1994-95 | C45: 1995 | D45: PRCP_y8 | E45: =INDEX(INDIRECT(dms_RPT),dms_PRCP_start_row+7) -> 2019-20 | F45: CRCP_y8 | G45: =INDEX(INDIRECT(dms_RPT),dms_CRCP_start_row+7) -> 2024-25 | H45: FRCP_y8 | I45: =INDEX(INDIRECT(dms_RPT),dms_FRCP_start_row+7) -> 2029-30
B46: 1995-96 | C46: 1996 | D46: PRCP_y9 | E46: =INDEX(INDIRECT(dms_RPT),dms_PRCP_start_row+8) -> 2020-21 | F46: CRCP_y9 | G46: =INDEX(INDIRECT(dms_RPT),dms_CRCP_start_row+8) -> 2025-26 | H46: FRCP_y9 | I46: =INDEX(INDIRECT(dms_RPT),dms_FRCP_start_row+8) -> 2030-31
B47: 1996-97 | C47: 1997 | D47: PRCP_y10 | E47: =INDEX(INDIRECT(dms_RPT),dms_PRCP_start_row+9) -> 2021-22 | F47: CRCP_y10 | G47: =INDEX(INDIRECT(dms_RPT),dms_CRCP_start_row+9) -> 2026-27 | H47: FRCP_y10 | I47: =INDEX(INDIRECT(dms_RPT),dms_FRCP_start_row+9) -> 2031-32
B48: 1997-98 | C48: 1998 | D48: PRCP_y11 | E48: =INDEX(INDIRECT(dms_RPT),dms_PRCP_start_row+10) -> 2022-23 | F48: CRCP_y11 | G48: =INDEX(INDIRECT(dms_RPT),dms_CRCP_start_row+10) -> 2027-28 | H48: FRCP_y11 | I48: =INDEX(INDIRECT(dms_RPT),dms_FRCP_start_row+10) -> 2032-33
B49: 1998-99 | C49: 1999 | D49: PRCP_y12 | E49: =INDEX(INDIRECT(dms_RPT),dms_PRCP_start_row+11) -> 2023-24 | F49: CRCP_y12 | G49: =INDEX(INDIRECT(dms_RPT),dms_CRCP_start_row+11) -> 2028-29 | H49: FRCP_y12 | I49: =INDEX(INDIRECT(dms_RPT),dms_FRCP_start_row+11) -> 2033-34
B50: 1999-00 | C50: 2000 | D50: PRCP_y13 | E50: =INDEX(INDIRECT(dms_RPT),dms_PRCP_start_row+12) -> 2024-25 | F50: CRCP_y13 | G50: =INDEX(INDIRECT(dms_RPT),dms_CRCP_start_row+12) -> 2029-30 | H50: FRCP_y13 | I50: =INDEX(INDIRECT(dms_RPT),dms_FRCP_start_row+12) -> 2034-35
B51: 2000-01 | C51: 2001 | D51: PRCP_y14 | E51: =INDEX(INDIRECT(dms_RPT),dms_PRCP_start_row+13) -> 2025-26 | F51: CRCP_y14 | G51: =INDEX(INDIRECT(dms_RPT),dms_CRCP_start_row+13) -> 2030-31 | H51: FRCP_y14 | I51: =INDEX(INDIRECT(dms_RPT),dms_FRCP_start_row+13) -> 2035-36
B52: 2001-02 | C52: 2002 | D52: PRCP_y15 | E52: =INDEX(INDIRECT(dms_RPT),dms_PRCP_start_row+14) -> 2026-27 | F52: CRCP_y15 | G52: =INDEX(INDIRECT(dms_RPT),dms_CRCP_start_row+14) -> 2031-32 | H52: FRCP_y15 | I52: =INDEX(INDIRECT(dms_RPT),dms_FRCP_start_row+14) -> 2036-37
B53: 2002-03 | C53: 2003 | D53: PRCP_y16 | E53: =INDEX(INDIRECT(dms_RPT),dms_PRCP_start_row+15) -> 2027-28 | F53: CRCP_y16 | G53: =INDEX(INDIRECT(dms_RPT),dms_CRCP_start_row+15) -> 2032-33 | H53: FRCP_y16 | I53: =INDEX(INDIRECT(dms_RPT),dms_FRCP_start_row+15) -> 
B54: 2003-04 | C54: 2004
B55: 2004-05 | C55: 2005
B56: 2005-06 | C56: 2006 | E56: CRY - FRY
B57: 2006-07 | C57: 2007 | D57: dms_y1 | E57: =IFERROR(INDEX(INDIRECT(dms_RPT),dms_CRY_start_row),0) -> 2020-21
B58: 2007-08 | C58: 2008 | D58: dms_y2 | E58: =IFERROR(INDEX(INDIRECT(dms_RPT),dms_CRY_start_row+1),0) -> 2021-22
B59: 2008-09 | C59: 2009 | D59: dms_y3 | E59: =IFERROR(INDEX(INDIRECT(dms_RPT),dms_CRY_start_row+2),0) -> 2022-23
B60: 2009-10 | C60: 2010 | D60: dms_y4 | E60: =IFERROR(INDEX(INDIRECT(dms_RPT),dms_CRY_start_row+3),0) -> 2023-24
B61: 2010-11 | C61: 2011 | D61: dms_y5 | E61: =IFERROR(INDEX(INDIRECT(dms_RPT),dms_CRY_start_row+4),0) -> 2024-25
B62: 2011-12 | C62: 2012 | D62: dms_y6 | E62: =IFERROR(INDEX(INDIRECT(dms_RPT),dms_CRY_start_row+5),0) -> 2025-26
B63: 2012-13 | C63: 2013 | D63: dms_y7 | E63: =IFERROR(INDEX(INDIRECT(dms_RPT),dms_CRY_start_row+6),0) -> 2026-27
B64: 2013-14 | C64: 2014 | D64: dms_y8 | E64: =IFERROR(INDEX(INDIRECT(dms_RPT),dms_CRY_start_row+7),0) -> 2027-28
B65: 2014-15 | C65: 2015 | D65: dms_y9 | E65: =IFERROR(INDEX(INDIRECT(dms_RPT),dms_CRY_start_row+8),0) -> 2028-29
B66: 2015-16 | C66: 2016 | D66: dms_y10 | E66: =IFERROR(INDEX(INDIRECT(dms_RPT),dms_CRY_start_row+9),0) -> 2029-30
B67: 2016-17 | C67: 2017 | D67: dms_y11 | E67: =IFERROR(INDEX(INDIRECT(dms_RPT),dms_CRY_start_row+10),0) -> 2030-31
B68: 2017-18 | C68: 2018 | D68: dms_y12 | E68: =IFERROR(INDEX(INDIRECT(dms_RPT),dms_CRY_start_row+11),0) -> 2031-32
B69: 2018-19 | C69: 2019 | D69: dms_y13 | E69: =IFERROR(INDEX(INDIRECT(dms_RPT),dms_CRY_start_row+12),0) -> 2032-33
B70: 2019-20 | C70: 2020 | D70: dms_y14 | E70: =IFERROR(INDEX(INDIRECT(dms_RPT),dms_CRY_start_row+13),0) -> 2033-34
B71: 2020-21 | C71: 2021 | D71: dms_y15 | E71: =IFERROR(INDEX(INDIRECT(dms_RPT),dms_CRY_start_row+14),0) -> 2034-35
B72: 2021-22 | C72: 2022 | D72: dms_y16 | E72: =IFERROR(INDEX(INDIRECT(dms_RPT),dms_CRY_start_row+15),0) -> 2035-36
B73: 2022-23 | C73: 2023
B74: 2023-24 | C74: 2024
B75: 2024-25 | C75: 2025
B76: 2025-26 | C76: 2026
B77: 2026-27 | C77: 2027
B78: 2027-28 | C78: 2028
B79: 2028-29 | C79: 2029
B80: 2029-30 | C80: 2030
B81: 2030-31 | C81: 2031
B82: 2031-32 | C82: 2032
B83: 2032-33 | C83: 2033
B84: 2033-34 | C84: 2034
B85: 2034-35 | C85: 2035
B86: 2035-36 | C86: 2036
B87: 2036-37 | C87: 2037

Sheet AER ETL (hidden)
B1: AER ETL INFORMATION
B3: USES NAMED RANGES FLAG | C3: yes | D3: dms_Defined_Names_Used
B5: IF THIS IS AN ABC RIN - make sure the the named range CRY is applied and the named range dms_dollar_nom_UOM is applied
B6: IF THIS IS A RESET RIN - make sure the named ranges CRY and dms_dollar_nom_UOM are NOT present in the workbook
B7: FOR ABC RINS THAT SPAN MULTIPLE YEARS - make sure MultiYear Flag is set and final year entered as required
B9: Full trading name | C9: =INDEX(dms_TradingNameFull_List,MATCH(dms_TradingName,dms_TradingName_List)) -> Queensland Electricity Transmission Corporation Limited trading as Powerlink Queensland | E9: dms_TradingNameFull
B10: Trading name | C10: =dms_TradingName -> Powerlink
A11: Selected here | B11: Model / RIN | C11: Reset | D11: dms_Model
A12: Read from Business & other details | B12: Source | C12: Regulatory proposal | D12: dms_Source
B13: Data quality | C13: Consolidated | D13: For DB purposes this is always Consoldiated
B14: Data status | C14: Public | D14: For DB purposes this is always Public
B15: Amendment reason | C15: =dms_Amendment_Text -> . | F15: dms_AmendmentReason
B16: Submission date | C16: =dms_Typed_Submission_Date -> 2021-01-28 | D16: dms_SubmissionDate
A18: Redundant | B18: EBSS - First application of scheme in forthcoming period? | C18: No
A19: Pre-populated from lookup table | B19: Data ingestion data quality | C19: Consolidated | D19: dms_DataQuality | E19: Always Consolidated
B20: Sector | C20: =INDEX(dms_Sector_List,MATCH(dms_TradingName,dms_TradingName_List)) -> Electricity | D20: dms_Sector | E20: =INDEX(dms_Sector_List,MATCH(dms_TradingName,dms_TradingName_List))
B21: Segment | C21: =INDEX(dms_Segment_List,MATCH(dms_TradingName,dms_TradingName_List)) -> Transmission | D21: dms_Segment | E21: =INDEX(dms_Segment_List,MATCH(dms_TradingName,dms_TradingName_List))
B22: Regulatory Year Ending | C22: =dms_RYE_result -> 2027 | D22: dms_RYE | E22: =IF(dms_MultiYear_Flag=1,LEFT(dms_Specified_FinalYear,2)&RIGHT(dms_Specified_FinalYear,2),INDEX(dms_RYE_Formula_Result,MATCH(dms_Model,dms_Model_List)))
B23: Reporting Period Type | C23: =INDEX(dms_RPT_List,MATCH(dms_TradingName,dms_TradingName_List)) -> Financial | D23: dms_RPT | E23: =INDEX(dms_RPT_List,MATCH(dms_TradingName,dms_TradingName_List))
B24: EB/CA Unit of Measure for Monetary Values | C24: $0s | D24: dms_dollar_nom_UOM | E24: If the cover sheet is attached to an ABC RIN apply the NAMED RANGE to the cell
B25: Security Classification | C25: Public | D25: dms_Classification | E25: Always Public
B26: Jurisdiction | C26: =INDEX(dms_JurisdictionList,MATCH(dms_TradingName,dms_TradingName_List)) -> Qld | D26: dms_Jurisdiction | E26: =INDEX(dms_JurisdictionList,MATCH(dms_TradingName,dms_TradingName_List))
A27: Relevant for PTRM, RFMs and Reset RINS | B27: $ REAL REFERENCES
B28: Does the named range CRY exist in this file? | C28: =IFERROR(CRY,"NO") -> 2020-21
B29: CRY-1 (last full calendar year before CRY) | C29: =IFERROR(IF(dms_RPT="calendar",CRY-1,LEFT(CRY,4)),"CRY not present") -> 2020 | D29: dms_Cal_Year_B4_CRY | E29: '=IF(dms_RPT="financial",VALUE(LEFT(dms_SingleYear_FinalYear_Result,4)),VALUE(LEFT(dms_SingleYear_FinalYear_Result,4)-1))
B30: Dollar $ real month | C30: =INDEX(dms_RPTMonth_List,MATCH(dms_TradingName,dms_TradingName_List)) -> June | D30: dms_RPTMonth | E30: =INDEX(dms_RPTMonth_List,MATCH(dms_TradingName,dms_TradingName_List))
B31: Dollar $ real (the last month before the FRCP_y1) | C31: =IF(dms_Model="RFM",dms_DollarReal_Prev, IF(dms_SingleYearModel="yes",CONCATENATE(dms_RPTMonth)&" "&VALUE((LEFT(dms_CRY_start_year,2)&RIGHT(dms_CRY_start_year,2))),CONCATENATE(dms_RPTMonth)&" "&dms_DollarReal_year)) -> June 2022 | D31: dms_DollarReal | E31: =IF(dms_Model="RFM",dms_DollarReal_Prev, IF(dms_SingleYearModel="yes",CONCATENATE(dms_RPTMonth)&" "&VALUE((LEFT(dms_CRY_start_year,2)&RIGHT(dms_CRY_start_year,2))),CONCATENATE(dms_RPTMonth)&" "&dms_DollarReal_year))
B32: Dollar $ real previous year (PRCP_y5) | C32: =CONCATENATE(dms_RPTMonth)&" "&dms_Previous_DollarReal_year -> June 2017 | D32: dms_DollarReal_Prev | E32: =IF(SUM(dms_SingleYear_Model)>0,CONCATENATE(dms_RPTMonth)&" "&VALUE(((LEFT(CRY,2))&RIGHT(CRY,2))-1),CONCATENATE(dms_RPTMonth)&" "&VALUE(((LEFT(dms_CRCP_FirstYear_Result,2)&RIGHT(dms_CRCP_FirstYear_Result,2))))-1)
B33: PTRM/ RFMs
B34: Form of control | C34: =INDEX(dms_FormControl_List,MATCH(dms_TradingName,dms_TradingName_List)) -> Revenue cap | D34: dms_FormControl | E34: =INDEX(dms_FormControl_List,MATCH(dms_TradingName,dms_TradingName_List))
A35: All potential values for Regulatory Years or RYEs as calculated | B35: This block works out the various RYE's for ALL RIN types and MODELS
B36: dms_start_year | C36: =FRCP_y1 -> 2022-23 | D36: =FRCP_y1 | E36: FRCP_y1 from cover sheet
B37: dms_CRY_start_year | C37: =IFERROR(CRY,CRCP_y4) -> 2020-21 | D37: =IFERROR(CRY,CRCP_y4)
B38: dms_CRY_start_row | C38: =IFERROR(MATCH(dms_CRY_start_year,INDIRECT(dms_RPT),0),0) -> 34 | D38: =IFERROR(MATCH(dms_CRY_start_year,INDIRECT(dms_RPT),0),0)
B39: dms_FRCP_start_row | C39: =MATCH(dms_start_year,INDIRECT(dms_RPT),0) -> 36 | D39: =MATCH(dms_start_year,INDIRECT(dms_RPT),0) | E39: Uses FRCP_y1 as a start reference
B40: dms_CRCP_start_row | C40: =dms_FRCP_start_row-dms_CRCPlength_Num -> 31 | D40: =dms_FRCP_start_row-dms_CRCPlength_Num | E40: Uses the value in dms_CRCPlength_Num
B41: dms_PRCP_start_row | C41: =dms_FRCP_start_row-dms_CRCPlength_Num-dms_PRCPlength_Num -> 26 | D41: =dms_FRCP_start_row-dms_CRCPlength_Num-dms_PRCPlength_Num | E41: Uses the value in dms_CRCPlength_Num and dms_PRCPlength_Num
B42: dms_RYE_start_row | C42: =dms_FRCP_start_row+(dms_FRCPlength_Num-1) -> 40 | D42: =dms_FRCP_start_row+(dms_FRCPlength_Num-1) | E42: Uses the value in dms_FRCPlength_Num-1
B43: FRCP_start_year | C43: =INDEX(INDIRECT(dms_RPT),dms_FRCP_start_row) -> 2022-23 | D43: =INDEX(INDIRECT(dms_RPT),dms_FRCP_start_row) | E43: Converts the FRCP start row to display the year
B44: CRCP_start_year | C44: =INDEX(INDIRECT(dms_RPT),dms_CRCP_start_row) -> 2017-18 | D44: =INDEX(INDIRECT(dms_RPT),dms_CRCP_start_row) | E44: Converts the CRCP start row to display the year
B45: PRCP_start_year | C45: =INDEX(INDIRECT(dms_RPT),dms_PRCP_start_row) -> 2012-13 | D45: =INDEX(INDIRECT(dms_RPT),dms_PRCP_start_row) | E45: Converts the PRCP start row to display the year
B46: FRCP_final_year | C46: =INDEX(INDIRECT(dms_RPT),dms_FRCP_start_row+dms_FRCPlength_Num-1) -> 2026-27 | D46: =INDEX(INDIRECT(dms_RPT),dms_FRCP_start_row+dms_FRCPlength_Num-1) | E46: Finds the FRCP final year
B47: CRCP_final_year | C47: =INDEX(INDIRECT(dms_RPT),dms_CRCP_start_row+dms_CRCPlength_Num-1) -> 2021-22 | D47: =INDEX(INDIRECT(dms_RPT),dms_CRCP_start_row+dms_CRCPlength_Num-1) | E47: Finds the CRCP final year
B48: PRCP_final_year | C48: =INDEX(INDIRECT(dms_RPT),dms_PRCP_start_row+dms_FRCPlength_Num-1) -> 2016-17 | D48: =INDEX(INDIRECT(dms_RPT),dms_PRCP_start_row+dms_FRCPlength_Num-1) | E48: Finds the PRCP final year
B49: dms_Reset_final_year | C49: =INDEX(INDIRECT(dms_RPT),dms_RYE_start_row) -> 2026-27 | D49: =INDEX(INDIRECT(dms_RPT),dms_RYE_start_row) | E49: For Resets and PTRM/RFMs (same as FRCP_final_year)
B50: dms_SpecifiedYear_final_year | C50: =FRY -> 2020-21 | D50: =FRY | E50: FRY from cover sheet
B51: dms_DollarReal_year | C51: =LEFT(CRCP_final_year,2)&RIGHT(CRCP_final_year,2) -> 2022 | D51: =LEFT(CRCP_final_year,2)&RIGHT(CRCP_final_year,2) | E51: Uses the value in CRCP_final_year
B52: dms_Previous_DollarReal_year | C52: =LEFT(PRCP_final_year,2)&RIGHT(PRCP_final_year,2) -> 2017 | D52: =LEFT(PRCP_final_year,2)&RIGHT(PRCP_final_year,2) | E52: Uses the value in PRCP_final_year
B53: dms_CRY_RYE | C53: =IFERROR(LEFT(CRY,2)&RIGHT(CRY,2),0) -> 2021 | D53: =IFERROR(LEFT(CRY,2)&RIGHT(CRY,2),0) | E53: For ABC single year RINS
B54: dms_Reset_RYE | C54: =IF(dms_Model_Span>1,IF(dms_Model="RFM",(LEFT(dms_DollarReal_year,2)&RIGHT(dms_DollarReal_year,2)),(LEFT(dms_Reset_final_year,2)&RIGHT(dms_Reset_final_year,2))),0) -> 2027 | D54: =IF(dms_Model_Span>1,IF(dms_Model="RFM",(LEFT(dms_DollarReal_year,2)&RIGHT(dms_DollarReal_year,2)),(LEFT(dms_Reset_final_year,2)&RIGHT(dms_Reset_final_year,2))),0) | E54: If model span > 1 then uses dms_Reset_RYE otherwise it's a multi year ABC and uses dms_Specified_RYE
B55: dms_Specified_RYE | C55: =IF(dms_MultiYear_ResponseFlag="Yes",(LEFT(dms_Specified_FinalYear,2)&RIGHT(dms_Specified_FinalYear,2)),0) -> 0 | D55: =IF(dms_MultiYear_ResponseFlag="Yes",(LEFT(dms_Specified_FinalYear,2)&RIGHT(dms_Specified_FinalYear,2)),0) | E55: If multi year ABC - uses dms_Specified_FinalYear
B56: dms_Model_Span | C56: =INDEX(dms_Model_Span_List,MATCH(dms_Model,dms_Model_List)) -> 5 | D56: =INDEX(dms_Model_Span_List,MATCH(dms_Model,dms_Model_List)) | E56: A result of 5 is used to signify that it is more than 1 year span
B57: dms_RYE_result | C57: =IF(dms_MultiYear_ResponseFlag="yes",dms_Specified_RYE,(IF(dms_Model_Span>1,dms_Reset_RYE,dms_CRY_RYE))) -> 2027 | D57: =IF(dms_MultiYear_ResponseFlag="yes",dms_Specified_RYE,(IF(dms_Model_Span>1,dms_Reset_RYE,dms_CRY_RYE))) | E57: Nested IF - feeds into dms_RYE
B58: dms_Reset_Span | C58: =IF(dms_Reset_RYE>0,CONCATENATE(FRCP_y1," to ",FRCP_final_year),0) -> 2022-23 to 2026-27 | D58: =IF(dms_Reset_RYE>0,CONCATENATE(FRCP_y1," to ",FRCP_final_year),0) | E58: Reset span of years as text
B59: dms_SpecifiedYear_Span | C59: =IF(dms_Specified_RYE>0,CONCATENATE(CRY," to ",dms_Specified_FinalYear),0) -> 0 | D59: =IF(dms_Specified_RYE>0,CONCATENATE(CRY," to ",dms_Specified_FinalYear),0) | E59: Multi year ABC span of years as text
B60: dms_Header_Span | C60: =IF(dms_MultiYear_Flag=1,dms_SpecifiedYear_Span,IF(dms_Model_Span>1,dms_y1&" - "&FRCP_final_year,CRY)) -> 2020-21 - 2026-27 | D60: =IF(dms_MultiYear_Flag=1,dms_SpecifiedYear_Span,IF(dms_Model_Span>1,dms_Reset_Span,CRY)) | E60: NESTED IF - for Sheet Headers
B61: ABC RINS THAT SPAN MULTIPLE YEARS
B62: This is a multi year ABC RIN? | C62: No
C63: =IF(dms_MultiYear_ResponseFlag="No",0,1) -> 0 | D63: dms_MultiYear_Flag | E63: This is set from the answer provided above
C64: =IF(dms_MultiYear_Flag=1,FRY,"not a Multiple year submission") -> not a Multiple year submission | D64: dms_Specified_FinalYear | E64: The result here is returned to dms_CRCP_FinalYear_Result if response to Q in C73 is "yes" and dms_MultiYear_Flag is set to 1
B65: Start year for 5.2 in Multi year ABC RINS | C65: =IFERROR(IF(dms_MultiYear_Flag=1,FRY,CRY),"not an ABC") -> 2020-21 | D65: dms_0502_Inst_Year | E65: =IF(dms_MultiYear_Flag=1,FRY,CRY) | G65: For single year RINS this is CRY - multi year RINS need to start a the end of the span of years (ie. FRY)
B66: WHAT IS THE RYE?
B67: Reg Period Lengths
B68: PRCP length in years | C68: =INDEX(dms_PRCPlength_List,MATCH(dms_TradingName,dms_TradingName_List)) -> 5 | D68: dms_PRCPlength_Num | E68: =INDEX(dms_PRCPlength_List,MATCH(dms_TradingName,dms_TradingName_List))
B69: CRCP length in years | C69: =INDEX(dms_CRCPlength_List,MATCH(dms_TradingName,dms_TradingName_List)) -> 5 | D69: dms_CRCPlength_Num | E69: =INDEX(dms_CRCPlength_List,MATCH(dms_TradingName,dms_TradingName_List))
B70: FRCP length in years | C70: =INDEX(dms_FRCPlength_List,MATCH(dms_TradingName,dms_TradingName_List)) -> 5 | D70: dms_FRCPlength_Num | E70: =INDEX(dms_FRCPlength_List,MATCH(dms_TradingName,dms_TradingName_List))
B71: Single year RIN?
B72: Single Year ABC RIN ? | C72: =IF(dms_Model="EB",1,0) -> 0 | D72: dms_EB
C73: =IF(dms_Model="CA",1,0) -> 0 | D73: dms_CA | E73: =dms_SingleYear_Model
C74: =IF(dms_Model="ARR",1,0) -> 0 | D74: dms_ARR
B75: Is this a single Year ABC RIN? | C75: =IF(SUM(dms_SingleYear_Model)=1,"yes","no") -> no | D75: dms_SingleYearModel | E75: =IF(SUM(dms_SingleYear_Model)=1,"yes","no")
B76: Single Year Final Year Result | C76: =IF(AND(dms_SingleYearModel="yes",dms_MultiYear_Flag=0),CRY,0) -> 0 | D76: dms_SingleYear_FinalYear_Result | E76: =IFERROR(IF(SUM(dms_SingleYear_Model)<>0,(INDIRECT(dms_SingleYear_FinalYear_Ref)),"not a single year RIN"),"CRY not present")
B77: Multi year RIN?
B79: Multi Year Reset/Model? | C79: =IF(dms_Model_Span>1,"yes","no") -> yes
B80: Final year result for Reset/Model | C80: =IF(dms_Model_Span>1,dms_Reset_final_year,0) -> 2026-27 | D80: dms_MultiYear_FinalYear_Result | E80: dms_CRCP_FinalYear_Result
B82: Multi Year ABC RIN? | C82: =IF(dms_MultiYear_Flag=1,"yes","no") -> no | D82: dms_MultiYear_ABC_RIN
B83: Final year result for ABC multi year | C83: =IF(dms_MultiYear_Flag=1,C50,0) -> 0
B85: EB RINS
B86: Calendar Year for table 3.6 data | C86: =IFERROR(IF(dms_Segment="Transmission",dms_Cal_Year_B4_CRY,CRY),"CRY not present") -> 2020 | D86: dms_0306_Year | E86: =IF(dms_Segment="Transmission",dms_Cal_Year_B4_CRY,CRY)
B87: CA RINS
B88: Find how many rows in tables 6.3 sustained interruptions? | E88: dms_060301_MaxRows only returns a valid value when cover sheet is attached to a CA file
C89: =IF(dms_Model<>"CA","not a CA","Is a CA") -> not a CA | E89: =IF(dms_Model<>"CA","not a CA","Is a CA")
B90: dms_060301_Avg_Duration_Sustained_Int_Values present? | C90: =IFERROR(IF(INDEX(dms_060301_Avg_Duration_Sustained_Int_Values,1,1)<>"","yes","no"),"no") -> no | D90: dms_060301_checkvalue | E90: =IFERROR(IF(INDEX(dms_060301_Avg_Duration_Sustained_Int_Values,1,1)<>"","yes","no"),"no")
C91: =IF(AND(dms_Model="CA",(dms_060301_checkvalue="no")),"error - NR not present","no errors") -> no errors | E91: =IF(AND(dms_Model="CA",(dms_060301_checkvalue="no")),"error - NR not present","no errors")
B92: Table 6.3.1 - last row reference | C92: =IFERROR(IF(dms_Model="CA",LOOKUP(2,1/(dms_060301_Avg_Duration_Sustained_Int_Values<>""),(ROW(dms_060301_Avg_Duration_Sustained_Int_Values))),"not a CA"),"6.3 not present") -> not a CA | D92: dms_060301_LastRow | E92: =IFERROR(IF(dms_Model="CA",LOOKUP(2,1/(dms_060301_Avg_Duration_Sustained_Int_Values<>""),(ROW(dms_060301_Avg_Duration_Sustained_Int_Values))),"not a CA"),"6.3 not present")
B93: Table 6.3.1 - max number rows | C93: =IFERROR(IF(dms_Model="CA",(dms_060301_LastRow-15),"not a CA"),"error") -> not a CA | D93: dms_060301_MaxRows | E93: =IFERROR(IF(dms_Model="CA",(dms_060301_LastRow-15),"not a CA"),"error")
B94: Table 6.6.3 - Public lighting repair - no. business days | C94: =INDEX(dms_663_List,MATCH(dms_TradingName,dms_TradingName_List)) -> 5 | D94: dms_663 | E94: =INDEX(dms_663_List,MATCH(dms_TradingName,dms_TradingName_List))
B95: ARR or RESET RINS
B96: How many rows in tables 6.1 or 6.7? (leap year?) | C96: insert dms_LeapYear NR if required | E96: 'dms_LeapYear is used to determine dms_060701_Max_Rows BUT it is only found on worksheet 6.1 or 6.7 and the date value in the cell is used to determine whether it is a leap year
B97: Is dms_LeapYear named range present? | C97: =IFERROR(IF(dms_LeapYear,"yes"),"no") -> no
B98: Table 6.7.1 - includes a leap year? | C98: =IFERROR(IF(MONTH(DATE(YEAR(dms_LeapYear),2,29))=2,"is a leap year","not a leap year"), "dms_LeapYear not present") -> dms_LeapYear not present | D98: dms_LeapYear_Result | E98: =IFERROR(IF(MONTH(DATE(YEAR(dms_LeapYear),2,29))=2,"is a leap year","not a leap year"),"dms_LeapYear not present")
B99: MaxRows if Reset and leap year | C99: =IF(dms_LeapYear_Result="is a leap year",1827,1826) -> 1826 | D99: dms_060701_Reset_MaxRows | E99: =IF(dms_LeapYear_Result="is a leap year",1827,1826) | H99: number of days present in Reset RIN table
B100: MaxRows if ARR and leap year | C100: =IF(dms_LeapYear_Result="is a leap year",366,365) -> 365 | D100: dms_060701_ARR_MaxRows | E100: =IF(dms_LeapYear_Result="is a leap year",366,365) | H100: number of days present in ARR RIN table
B101: Table 6.7.1 - Max Rows (leap year/ non leap year) | C101: =IF(dms_Model="ARR",dms_060701_ARR_MaxRows,IF(dms_Model="Reset",dms_060701_Reset_MaxRows,"not a relevant RIN type")) -> 1826 | D101: dms_060701_MaxRows | E101: =IF(dms_Model="ARR",dms_060701_ARR_MaxRows,IF(dms_Model="Reset",dms_060701_Reset_MaxRows,"not a relevant RIN type"))
B102: How many columns in 6.7? (4 or 5 feeder categories) | C102: =IF(dms_FifthFeeder_flag_NSP="NO","This NSP has only 4 feeder categories","This NSP has 5 feeder categories") -> This NSP has only 4 feeder categories
B103: Table 6.7.1 - Last column (# of feeder categories > 4) | C103: =IF(dms_FifthFeeder_flag_NSP="NO",10,12) -> 10 | D103: dms_060701_MaxCols | E103: =IF(dms_FifthFeeder_flag_NSP="NO",8,10)
B104: Table 6.7.1 - Number of offset rows | C104: =IF(dms_Model="ARR",15,9) -> 9 | D104: dms_060701_OffsetRows | E104: =IF(dms_Model="ARR",15,9)
B105: Start date for telephone answering in 6.1 or 6.7? | E105: Using 060101 as naming standard not 060701 for start dates
B106: Table 6.1.1 and 6.7.1 - Start Date as Text | C106: =IF(dms_SingleYearModel="yes",(CONCATENATE(IF(LEN(CRY)=4,"1-Jan-","1-Jul-"),LEFT(CRY,4))),(CONCATENATE(IF(LEN(PRCP_y4)=4,"1-Jan-","1-Jul-"),LEFT(PRCP_y4,4)))) -> 1-Jul-2015 | D106: dms_060101_StartDateTxt | E106: =IF(SUM(dms_SingleYear_Model)>1,(CONCATENATE(IF(LEN(CRY)=4,"1-Jan-","1-Jul-"),LEFT(CRY,4))),(CONCATENATE(IF(LEN(CRCP_y4)=4,"1-Jan-","1-Jul-"),LEFT(CRCP_y4,4))))
B107: Table 6.1.1 and 6.7.1 - Start Date as Date Value | C107: =DATEVALUE(dms_060701_StartDateTxt) -> 42186 | D107: dms_060101_StartDateVal | E107: =DATEVALUE(dms_060701_StartDateTxt)
B108: ARRs
B109: How many rows in table 6.8? | C109: insert dms_060801_StartCell NR if required | E109: dms_060801_StartCell is only found on worksheet 6.8 and is used to determine the starting date for the date range
B110: Is dms_060801_StartCell named range present? | C110: yes | E110: =IFERROR(IF((ROW(dms_060801_StartCell)-1)=1,"yes","yes"),"no")
B111: Table 6.8 - Number of offset rows | C111: 12 | D111: dms_0608_OffsetRows | E111: =IFERROR(IF(dms_Model="ARR",(ROW(dms_060801_StartCell)-1),"not an ARR"),"6.8 error")
B112: Table 6.8 - Last row | C112: 0 | D112: dms_0608_LastRow | E112: =IFERROR(IF(dms_060801_StartCell<>"",IF(dms_Model="ARR",(LOOKUP(2,1/(dms_060801_01_Values<>""),(ROW(dms_060801_01_Values)))),"not an ARR"),0),"0")
B113: Table 6.8 - MaxRows | C113: =IFERROR(IF(dms_Model="ARR",(MAX(0,dms_0608_LastRow-dms_0608_OffsetRows)),"not an ARR"),"0") -> not an ARR | D113: dms_060801_MaxRows | E113: =IFERROR(IF(dms_Model="ARR",(MAX(0,dms_0608_LastRow-dms_0608_OffsetRows)),"not an ARR"),"0")
B114: TNSP RESET RINS
B115: Table 7.9.4 only appears in TNSPs Reset RIN
B116: Table 7.9.4 - first year | C116: =LEFT(PRCP_y3,4) -> 2014 | D116: dms_070904_Start_Year | E116: =LEFT(PRCP_y3,4)
B118: MISC
B119: Distribution Determination Reference | C119: =INDEX(dms_DeterminationRef_List,MATCH(dms_TradingName,dms_TradingName_List)) -> transmission determination | D119: dms_DeterminationRef
B120: Public lighting NSP? | C120: =INDEX(dms_Public_Lighting_List,MATCH(dms_TradingName,dms_TradingName_List)) -> NO | D120: dms_Public_Lighting | E120: =INDEX(dms_Public_Lighting_List,MATCH(dms_TradingName,dms_TradingName_List))
B121: CBD Feeder for this business | C121: =INDEX(dms_CBD_flag,MATCH(dms_TradingName,dms_TradingName_List)) -> NO | D121: dms_CBD_flag_NSP
B122: Urban Feeder for this business | C122: =INDEX(dms_Urban_flag,MATCH(dms_TradingName,dms_TradingName_List)) -> NO | D122: dms_Urban_flag_NSP
B123: Short rural Feeder for this business | C123: =INDEX(dms_ShortRural_flag,MATCH(dms_TradingName,dms_TradingName_List)) -> NO | D123: dms_ShortRural_flag_NSP
B124: Long rural Feeder for this business | C124: =INDEX(dms_LongRural_flag,MATCH(dms_TradingName,dms_TradingName_List)) -> NO | D124: dms_LongRural_flag_NSP
B125: Fifth Feeder Category (eg. TasNetworks (D)) | C125: =INDEX(dms_FeederType_5_flag,MATCH(dms_TradingName,dms_TradingName_List)) -> NO | D125: dms_FifthFeeder_flag_NSP | E125: =INDEX(dms_FeederType_5_flag,MATCH(dms_TradingName,dms_TradingName_List))
B127: DISCARD FILES
B128: discard this record? | C128: NO | D128: dms_DISCARD | E128: If record is to be discarded from DB set this flag to YES
B130: SUBSET FILES
B131: Is this Submission File a Subset File | C131: NO | D131: dms_Partial
B134: REGULATORY YEARS FOR MULTI RYE SUBMISSIONS
B135: Multiple RYE flag | C135: NO | D135: dms_Multi_RYE_flag
C136: Manually specify RYE | D136: Named ranges to apply
C137: 2013 | D137: dms_RYE_01
C138: 2014 | D138: dms_RYE_02
C139: 2015 | D139: dms_RYE_03
C140: 2016 | D140: dms_RYE_04
C141: 2017 | D141: dms_RYE_05
C142: 2018 | D142: dms_RYE_06
C143: 2019 | D143: dms_RYE_07
C144: 2020 | D144: dms_RYE_08
C145: 2021 | D145: dms_RYE_09

Sheet Business & other details
V1: =INDEX(dms_Worksheet_List,MATCH(dms_Model,dms_Model_List)) -> REGULATORY REPORTING STATEMENT
V2: =INDEX(dms_TradingNameFull_List,MATCH(dms_TradingName,dms_TradingName_List)) -> Queensland Electricity Transmission Corporation Limited trading as Powerlink Queensland
V3: =dms_Header_Span -> 2020-21 - 2026-27
V4: BUSINESS & OTHER DETAILS
V6: INSTRUCTIONS
V7: Complete the following business details regulatory template before entering data or values in any other regulatory template. This regulatory template is linked to other cells within the spreadsheet and automatically generates column headings and conditional formatting to distinguish business specific input and non-input cells.
Q9: SUBMISSION PARTICULARS INPUT SHEET
V12: ENTITY DETAILS
V14: Business Name
V16: Short name | AL16: Powerlink
V17: ACN/ABN | AL17: =INDEX(dms_ABN_List,MATCH(dms_TradingName,dms_TradingName_List)) -> 82078849233
V21: Business Address | BQ21: Postal Address
V23: Address 1 | AL23: =INDEX(dms_Addr1_List,MATCH(dms_TradingName,dms_TradingName_List)) -> 33 Harold St | BI23: Address 1 | BQ23: =INDEX(dms_PAddr1_List,MATCH(dms_TradingName,dms_TradingName_List)) -> PO Box 1193
V24: Address 2 | AL24: =IF(ISBLANK(INDEX(dms_Addr2_List,MATCH(dms_TradingName,dms_TradingName_List))),"",(INDEX(dms_Addr2_List,MATCH(dms_TradingName,dms_TradingName_List)))) ->  | BI24: Address 2 | BQ24: =IF(ISBLANK(INDEX(dms_PAddr2_List,MATCH(dms_TradingName,dms_TradingName_List))),"",(INDEX(dms_PAddr2_List,MATCH(dms_TradingName,dms_TradingName_List)))) -> 
V25: Suburb | AL25: =INDEX(dms_Suburb_List,MATCH(dms_TradingName,dms_TradingName_List)) -> VIRGINIA | BI25: Suburb | BQ25: =INDEX(dms_PSuburb_List,MATCH(dms_TradingName,dms_TradingName_List)) -> VIRGINIA
V26: State | AL26: =INDEX(dms_State_List,MATCH(dms_TradingName,dms_TradingName_List)) -> Qld | AV26: Post code | BI26: State | BQ26: =INDEX(dms_PState_List,MATCH(dms_TradingName,dms_TradingName_List)) -> QLD | CA26: Post code
BA28: `
V30: Contact Names
V32: Name | AL32: Matthew Myers | BI32: Name | BQ32: -- enter name --
V33: Phone | AL33: 07 3860 2074 | BI33: Phone | BQ33: -- enter phone number --
V34: Email | AL34: mmyers@powerlink.com.au | BI34: Email | BQ34: -- enter email address --
Q39: REGULATORY CONTROL PERIODS
Z42: Forthcoming period | AL42: 2022-23 | AU42: =FRCP_y2 -> 2023-24 | BD42: =FRCP_y3 -> 2024-25 | BM42: =FRCP_y4 -> 2025-26 | BV42: =FRCP_y5 -> 2026-27
AL43: =FRCP_y6 -> 2027-28 | AU43: =FRCP_y7 -> 2028-29 | BD43: =FRCP_y8 -> 2029-30 | BM43: =FRCP_y9 -> 2030-31 | BV43: =FRCP_y10 -> 2031-32
AL44: =FRCP_y11 -> 2032-33 | AU44: =FRCP_y12 -> 2033-34 | BD44: =FRCP_y13 -> 2034-35 | BM44: =FRCP_y14 -> 2035-36 | BV44: =FRCP_y15 -> 2036-37
X46: RESETS | Z46: Current period | AL46: =CRCP_y1 -> 2017-18 | AU46: =CRCP_y2 -> 2018-19 | BD46: =CRCP_y3 -> 2019-20 | BM46: =CRCP_y4 -> 2020-21 | BV46: =CRCP_y5 -> 2021-22
AL47: =CRCP_y6 -> 2022-23 | AU47: =CRCP_y7 -> 2023-24 | BD47: =CRCP_y8 -> 2024-25 | BM47: =CRCP_y9 -> 2025-26 | BV47: =CRCP_y10 -> 2026-27
AL48: =CRCP_y11 -> 2027-28 | AU48: =CRCP_y12 -> 2028-29 | BD48: =CRCP_y13 -> 2029-30 | BM48: =CRCP_y14 -> 2030-31 | BV48: =CRCP_y15 -> 2031-32
Z50: Previous period | AL50: =PRCP_y1 -> 2012-13 | AU50: =PRCP_y2 -> 2013-14 | BD50: =PRCP_y3 -> 2014-15 | BM50: =PRCP_y4 -> 2015-16 | BV50: =PRCP_y5 -> 2016-17
AL51: =PRCP_y6 -> 2017-18 | AU51: =PRCP_y7 -> 2018-19 | BD51: =PRCP_y8 -> 2019-20 | BM51: =PRCP_y9 -> 2020-21 | BV51: =PRCP_y10 -> 2021-22
AL52: =PRCP_y11 -> 2022-23 | AU52: =PRCP_y12 -> 2023-24 | BD52: =PRCP_y13 -> 2024-25 | BM52: =PRCP_y14 -> 2025-26 | BV52: =PRCP_y15 -> 2026-27
Z54: Commencing year | AL54: 2020-21
X55: ANNUAL RINS
Z56: Final year | AL56: 2020-21
Q60: SUBMISSION DETAILS
Z62: RIN type | AL62: =INDIRECT(dms_Model) -> Regulatory Reporting (Reset)
Z64: Source | AL64: Regulatory proposal
X66: THIS FILE | Z66: Data Quality | AL66: Consolidated
Z68: Confidentiality Status | AL68: Public
Z70: Amended RIN Amendment Reason | AL70: .
Z74: Submission Date | AL74: 2021-01-28 | BD74: Please enter date this file submitted to AER

Sheet 7.6 Indicative bill
B1: REGULATORY REPORTING STATEMENT
B2: =dms_TradingName -> Powerlink
B3: 2022-23 to 2026-27
B4: 7.6 INDICATIVE IMPACT ON TRANSMISSION CHARGES & ELECTRICITY BILLS
B6: Instructions
B7: Powerlink is required to populate all input cells (yellow) in table 7.6.1 presented below. Small business customer is a business customer that consumes < 100 MWh p.a.
B9: 7.6.1 - INDICATIVE IMPACT OF THE REGULATORY PROPOSAL ON THE AVERAGE ELECTRICITY BILLS
B11: 7.6.1.1 - PARAMETERS BY TARIFF TYPE
D12: Single Rate Tariff
B13: A. ANNUAL USAGE PER CUSTOMER
D14: kWh
D15: =CRCP_y5 -> 2021-22
B16: Residential customer | D16: 4061
B17: Small business customer | D17: 6831
C18: Source: | D18: QCA Final Determination Regulated electricity prices for 2020-21 - June 2020
B21: B. TYPICAL ANNUAL ELECTRICITY BILL
D22: Single Rate Tariff
C23: Tariff description | D23: =CONCATENATE("$ real, ",dms_DollarReal) -> $ real, June 2022
D24: =CRCP_y5 -> 2021-22
B25: Residential customer | C25: Tariff 11 - Standard flat rate residential tariff in Queensland | D25: 1336
B26: Small business customer | C26: Tariff 20 - Standard flat rate small business tariff in Queensland | D26: 2263
C27: Source: | D27: QCA Final Determination Regulated electricity prices for 2020-21 - June 2020
B30: C. TRANSMISSION COSTS AS A PROPORTION OF A TYPICAL CUSTOMER'S ELECTRICITY BILL
D31: Single Rate Tariff
D32: Proportion (%)
D33: =CRCP_y5 -> 2021-22
B34: Residential customer | D34: 0.0887
B35: Small business customer | D35: 0.0887
C36: Source: | D36: AEMC Final Report Residential Electricity Price Trends 2020 - December 2020
B39: D. TRANSMISSION BILL COMPONENT
D40: Single Rate Tariff
D41: =CONCATENATE("$ real, ",dms_DollarReal) -> $ real, June 2022
D42: =CRCP_y5 -> 2021-22
B43: Residential customer | D43: =D34*D25 -> 118.5032
B44: Small business customer | D44: =D35*D26 -> 200.7281
B47: 7.6.1.2 - INDICATIVE ANNUAL AVERAGE TRANSMISSION PRICE IMPACT
C48: Units | D48: =CRCP_y5 -> 2021-22 | E48: =FRCP_y1 -> 2022-23 | F48: =FRCP_y2 -> 2023-24 | G48: =FRCP_y3 -> 2024-25 | H48: =FRCP_y4 -> 2025-26 | I48: =FRCP_y5 -> 2026-27 | J48: Average
B49: Forecast smoothed revenues ($ nominal) | C49: $ nominal | D49: 771675437 | E49: 689657739.3 | F49: 701146689 | G49: 712827032.1 | H49: 724701957.1 | I49: 736774705.5
B50: Forecast smoothed revenues ($ real) | C50: =CONCATENATE("$ real , ",dms_DollarReal) -> $ real , June 2022 | D50: 771675437 | E50: 674490411.7 | F50: 670645816.3 | G50: 666823135.2 | H50: 663022243.3 | I50: 659243016.5
B52: Energy delivered forecast (MWh) | C52: MWh | D52: 46078000 | E52: 46382000 | F52: 46611000 | G52: 46258000 | H52: 45811000 | I52: 45335000
B54: Annual price path ($ nominal) | C54: $/MWh, nominal | D54: =+D49/D52 -> 16.74715563 | E54: =+E49/E52 -> 14.86908152 | F54: 15.04251548 | G54: 15.40981089 | H54: 15.81938742 | I54: 16.25178572
B55: Annual price path ($ real) | C55: =CONCATENATE("$/MWh, ",dms_DollarReal) -> $/MWh, June 2022 | D55: =+D50/D52 -> 16.74715563 | E55: =+E50/E52 -> 14.54207261 | F55: 14.38814478 | G55: 14.41530406 | H55: 14.47299215 | I55: 14.54159075
B57: Annual price path (per cent, nominal) | C57: per cent, nominal | E57: =+E54/D54-1 -> -0.1121428704 | F57: 0.01166406641 | G57: 0.02441715359 | H57: 0.02657894597 | I57: 0.02733344124 | J57: =(I54/D54)^(1/5)-1 -> -0.005987132769
B58: Annual price path (per cent, real) | C58: =CONCATENATE("per cent , ",dms_DollarReal) -> per cent , June 2022 | E58: -0.1316691066 | F58: -0.01058499925 | G58: 0.001887615115 | H58: 0.004001864181 | I58: 0.004739766185 | J58: =(I55/D55)^(1/5)-1 -> -0.02784800366
B61: 7.6.1.3 - TRANSMISSION BILL COMPONENT
B62: Residential customer
D63: =CRCP_y5 -> 2021-22 | E63: =FRCP_y1 -> 2022-23 | F63: =FRCP_y2 -> 2023-24 | G63: =FRCP_y3 -> 2024-25 | H63: =FRCP_y4 -> 2025-26 | I63: =FRCP_y5 -> 2026-27 | J63: =CONCATENATE("Total ",E63, " to ",I63) -> Total 2022-23 to 2026-27 | K63: Annual average | L63: Annual impact on customer bill (%)
D64: $ nominal
B65: Regulated tariff | D65: =D43 -> 118.5032 | E65: =+D65*(1+E$57) -> 105.213911 | F65: =+E65*(1+F$57) -> 106.441133 | G65: =+F65*(1+G$57) -> 109.0401225 | H65: =+G65*(1+H$57) -> 111.9382941 | I65: =+H65*(1+I$57) -> 114.9979528 | J65: =+SUM(E65:I65) -> 547.6314135 | K65: =+AVERAGE(E65:I65) -> 109.5262827
B66: Annual change | E66: =+E65-D65 -> -13.289289 | F66: =+F65-E65 -> 1.227222045 | G66: =+G65-F65 -> 2.598989494 | H66: =+H65-G65 -> 2.898171525 | I66: =+I65-H65 -> 3.059658784 | J66: =+SUM(E66:I66) -> -3.505247152 | K66: =+AVERAGE(E66:I66) -> -0.7010494303 | L66: =+K66/D25 -> -0.0005247375975
D67: =CONCATENATE("$ real, ",dms_DollarReal) -> $ real, June 2022
B68: Regulated tariff | D68: =D43 -> 118.5032 | E68: =+D68*(1+E$58) -> 102.8999895 | F68: =+E68*(1+F$58) -> 101.8107932 | G68: 102.0029728 | H68: 102.4111748 | I68: 102.8965799 | J68: =+SUM(E68:I68) -> 512.0215102 | K68: =+AVERAGE(E68:I68) -> 102.404302
B69: Annual change | E69: =+E68-D68 -> -15.60321048 | F69: =+F68-E68 -> -1.089196312 | G69: 0.1921795922 | H69: 0.4082020432 | I69: 0.4854050235 | J69: =+SUM(E69:I69) -> -15.60662013 | K69: =+AVERAGE(E69:I69) -> -3.121324026 | L69: =+K69/D25 -> -0.002336320379
B71: Small Business customer
D72: =CRCP_y5 -> 2021-22 | E72: =FRCP_y1 -> 2022-23 | F72: =FRCP_y2 -> 2023-24 | G72: =FRCP_y3 -> 2024-25 | H72: =FRCP_y4 -> 2025-26 | I72: =FRCP_y5 -> 2026-27 | J72: =CONCATENATE("Total ",E72, " to ",I72) -> Total 2022-23 to 2026-27 | K72: Annual average | L72: Annual impact on customer bill (%)
D73: $ nominal
B74: Regulated tariff | D74: =D44 -> 200.7281 | E74: =+D74*(1+E$57) -> 178.2178747 | F74: =+E74*(1+F$57) -> 180.2966198 | G74: =+F74*(1+G$57) -> 184.6989501 | H74: =+G74*(1+H$57) -> 189.6080535 | I74: =+H74*(1+I$57) -> 194.7906941 | J74: =+SUM(E74:I74) -> 927.6121922 | K74: =+AVERAGE(E74:I74) -> 185.5224384
B75: Annual change | E75: =+E74-D74 -> -22.5102253 | F75: =+F74-E74 -> 2.078745125 | G75: =+G74-F74 -> 4.402330258 | H75: =+H74-G74 -> 4.909103415 | I75: =+I74-H74 -> 5.182640589 | J75: =+SUM(E75:I75) -> -5.937405916 | K75: =+AVERAGE(E75:I75) -> -1.187481183 | L75: =+K75/D26 -> -0.0005247375975
D76: =CONCATENATE("$ real, ",dms_DollarReal) -> $ real, June 2022
B77: Regulated tariff | D77: =D44 -> 200.7281 | E77: =+D77*(1+E$58) -> 174.2984104 | F77: =+E77*(1+F$58) -> 172.4534619 | G77: 172.7789876 | H77: 173.4704257 | I77: 174.2926349 | J77: =+SUM(E77:I77) -> 867.2939204 | K77: =+AVERAGE(E77:I77) -> 173.4587841
B78: Annual change | E78: =+E77-D77 -> -26.42968961 | F78: =+F77-E77 -> -1.844948543 | G78: 0.3255257613 | H78: 0.6914380418 | I78: 0.8222092576 | J78: =+SUM(E78:I78) -> -26.43546509 | K78: =+AVERAGE(E78:I78) -> -5.287093018 | L78: =+K78/D26 -> -0.002336320379

Sheet OLD (hidden)
B1: REGULATORY REPORTING STATEMENT
B2: =dms_TradingName -> Powerlink
B3: 2022-23 to 2026-27
B4: 7.6 INDICATIVE IMPACT ON TRANSMISSION CHARGES & ELECTRICITY BILLS
B6: Instructions
B7: Powerlink is required to populate all input cells (yellow) in table 7.6.1 presented below. Small business customer is a business customer that consumes < 100 MWh p.a.
B9: 7.6.1 - INDICATIVE IMPACT OF THE REGULATORY PROPOSAL ON THE AVERAGE ELECTRICITY BILLS
B11: 7.6.1.1 - PARAMETERS BY TARIFF TYPE
D12: Single Rate Tariff
B13: A. ANNUAL USAGE PER CUSTOMER
D14: kWh
D15: =CRCP_y5 -> 2021-22
B16: Residential customer | D16: 4061
B17: Small business customer | D17: 6831
C18: Source: | D18: QCA Final Determination Regulated electricity prices for 2020-21 - June 2020
B21: B. TYPICAL ANNUAL ELECTRICITY BILL
D22: Single Rate Tariff
C23: Tariff description | D23: =CONCATENATE("$ real, ",dms_DollarReal) -> $ real, June 2022
D24: =CRCP_y5 -> 2021-22
B25: Residential customer | C25: Tariff 11 - Standard flat rate residential tariff in Queensland | D25: 1336
B26: Small business customer | C26: Tariff 20 - Standard flat rate small business tariff in Queensland | D26: 2263
C27: Source: | D27: QCA Final Determination Regulated electricity prices for 2020-21 - June 2020
B30: C. TRANSMISSION COSTS AS A PROPORTION OF A TYPICAL CUSTOMER'S ELECTRICITY BILL
D31: Single Rate Tariff
D32: Proportion (%)
D33: =CRCP_y5 -> 2021-22
B34: Residential customer | D34: 0.0887
B35: Small business customer | D35: 0.0887
C36: Source: | D36: AEMC Final Report Residential Electricity Price Trends 2020 - December 2020
B39: D. TRANSMISSION BILL COMPONENT
D40: Single Rate Tariff
D41: =CONCATENATE("$ real, ",dms_DollarReal) -> $ real, June 2022
D42: =CRCP_y5 -> 2021-22
B43: Residential customer | D43: =D34*D25 -> 118.5032
B44: Small business customer | D44: =D35*D26 -> 200.7281
B47: 7.6.1.2 - INDICATIVE ANNUAL AVERAGE TRANSMISSION PRICE IMPACT
C48: Units | D48: =CRCP_y5 -> 2021-22 | E48: =FRCP_y1 -> 2022-23 | F48: =FRCP_y2 -> 2023-24 | G48: =FRCP_y3 -> 2024-25 | H48: =FRCP_y4 -> 2025-26 | I48: =FRCP_y5 -> 2026-27 | J48: Average
B49: Forecast smoothed revenues ($ nominal) | C49: $ nominal | D49: 771675437 | E49: 681946147 | F49: 697281132.4 | G49: 712960957.1 | H49: 728993375.3 | I49: 745386316.1
B50: Forecast smoothed revenues ($ real) | C50: =CONCATENATE("$ real , ",dms_DollarReal) -> $ real , June 2022 | D50: 771675437 | E50: 666948416.9 | F50: 666948416.9 | G50: 666948416.9 | H50: 666948416.9 | I50: 666948416.9
B52: Energy delivered forecast (MWh) | C52: MWh | D52: 46078000 | E52: 46382000 | F52: 46611000 | G52: 46258000 | H52: 45811000 | I52: 45335000
B54: Annual price path ($ nominal) | C54: $/MWh, nominal | D54: =+D49/D52 -> 16.74715563 | E54: =+E49/E52 -> 14.70281892 | F54: 14.9595832 | G54: 15.41270606 | H54: 15.91306401 | I54: 16.44174073
B55: Annual price path ($ real) | C55: =CONCATENATE("$/MWh, ",dms_DollarReal) -> $/MWh, June 2022 | D55: =+D50/D52 -> 16.74715563 | E55: =+E50/E52 -> 14.37946654 | F55: 14.30882017 | G55: 14.41801239 | H55: 14.55869588 | I55: 14.71155657
B57: Annual price path (per cent, nominal) | C57: per cent, nominal | E57: =+E54/D54-1 -> -0.1220706821 | F57: 0.01746360898 | G57: 0.03028980548 | H57: 0.03246399072 | I57: 0.03322281127 | J57: =(I54/D54)^(1/5)-1 -> -0.003674265829
B58: Annual price path (per cent, real) | C58: =CONCATENATE("per cent , ",dms_DollarReal) -> per cent , June 2022 | E58: -0.1413785805 | F58: -0.004913003368 | G58: 0.007631112456 | H58: 0.009757481828 | I58: 0.01049961398 | J58: =(I55/D55)^(1/5)-1 -> -0.02558600255
B61: 7.6.1.3 - TRANSMISSION BILL COMPONENT
B62: Residential customer
D63: =CRCP_y5 -> 2021-22 | E63: =FRCP_y1 -> 2022-23 | F63: =FRCP_y2 -> 2023-24 | G63: =FRCP_y3 -> 2024-25 | H63: =FRCP_y4 -> 2025-26 | I63: =FRCP_y5 -> 2026-27 | J63: =CONCATENATE("Total ",E63, " to ",I63) -> Total 2022-23 to 2026-27 | K63: Annual average | L63: Annual impact on customer bill (%)
D64: $ nominal
B65: Regulated tariff | D65: =D43 -> 118.5032 | E65: =+D65*(1+E$57) -> 104.0374335 | F65: =+E65*(1+F$57) -> 105.8543026 | G65: =+F65*(1+G$57) -> 109.0606088 | H65: =+G65*(1+H$57) -> 112.6011514 | I65: =+H65*(1+I$57) -> 116.3420782 | J65: =+SUM(E65:I65) -> 547.8955747 | K65: =+AVERAGE(E65:I65) -> 109.5791149
B66: Annual change | E66: =+E65-D65 -> -14.46576645 | F66: =+F65-E65 -> 1.816869058 | G66: =+G65-F65 -> 3.206306235 | H66: =+H65-G65 -> 3.540542593 | I66: =+I65-H65 -> 3.740926803 | J66: =+SUM(E66:I66) -> -2.161121762 | K66: =+AVERAGE(E66:I66) -> -0.4322243524 | L66: =+K66/D25 -> -0.0003235212218
D67: =CONCATENATE("$ real, ",dms_DollarReal) -> $ real, June 2022
B68: Regulated tariff | D68: =D43 -> 118.5032 | E68: =+D68*(1+E$58) -> 101.7493858 | F68: =+E68*(1+F$58) -> 101.2494907 | G68: 102.022137 | H68: 103.0176161 | I68: 104.0992613 | J68: =+SUM(E68:I68) -> 512.1378909 | K68: =+AVERAGE(E68:I68) -> 102.4275782
B69: Annual change | E69: =+E68-D68 -> -16.7538142 | F69: =+F68-E68 -> -0.4998950752 | G69: 0.7726462499 | H69: 0.9954791475 | I69: 1.081645203 | J69: =+SUM(E69:I69) -> -14.40393867 | K69: =+AVERAGE(E69:I69) -> -2.880787735 | L69: =+K69/D25 -> -0.002156278245
B71: Small Business customer
D72: =CRCP_y5 -> 2021-22 | E72: =FRCP_y1 -> 2022-23 | F72: =FRCP_y2 -> 2023-24 | G72: =FRCP_y3 -> 2024-25 | H72: =FRCP_y4 -> 2025-26 | I72: =FRCP_y5 -> 2026-27 | J72: =CONCATENATE("Total ",E72, " to ",I72) -> Total 2022-23 to 2026-27 | K72: Annual average | L72: Annual impact on customer bill (%)
D73: $ nominal
B74: Regulated tariff | D74: =D44 -> 200.7281 | E74: =+D74*(1+E$57) -> 176.2250839 | F74: =+E74*(1+F$57) -> 179.3026099 | G74: =+F74*(1+G$57) -> 184.7336511 | H74: =+G74*(1+H$57) -> 190.7308426 | I74: =+H74*(1+I$57) -> 197.0674574 | J74: =+SUM(E74:I74) -> 928.0596448 | K74: =+AVERAGE(E74:I74) -> 185.611929
B75: Annual change | E75: =+E74-D74 -> -24.50301608 | F75: =+F74-E74 -> 3.077525958 | G75: =+G74-F74 -> 5.431041176 | H75: =+H74-G74 -> 5.997191533 | I75: =+I74-H74 -> 6.336614786 | J75: =+SUM(E75:I75) -> -3.660642625 | K75: =+AVERAGE(E75:I75) -> -0.732128525 | L75: =+K75/D26 -> -0.0003235212218
D76: =CONCATENATE("$ real, ",dms_DollarReal) -> $ real, June 2022
B77: Regulated tariff | D77: =D44 -> 200.7281 | E77: =+D77*(1+E$58) -> 172.3494462 | F77: =+E77*(1+F$58) -> 171.5026927 | G77: 172.8114491 | H77: 174.4976537 | I77: 176.3298117 | J77: =+SUM(E77:I77) -> 867.4910533 | K77: =+AVERAGE(E77:I77) -> 173.4982107
B78: Annual change | E78: =+E77-D77 -> -28.37865384 | F78: =+F77-E77 -> -0.8467534095 | G78: 1.308756335 | H78: 1.686204574 | I78: 1.832158005 | J78: =+SUM(E78:I78) -> -24.39828834 | K78: =+AVERAGE(E78:I78) -> -4.879657668 | L78: =+K78/D26 -> -0.002156278245

Sheet Graph (hidden)
A2: Graph
A3: Transmission Component ($ Nominal) | B3: 2021/22 | C3: 2022/23 | D3: 2023/24 | E3: 2024/25 | F3: 2025/26 | G3: 2026/27
A4: Residential (2023-27 RoR) | B4: ='7.6 Indicative bill'!D65 -> 118.5032 | C4: ='7.6 Indicative bill'!E65 -> 105.213911 | D4: ='7.6 Indicative bill'!F65 -> 106.441133 | E4: ='7.6 Indicative bill'!G65 -> 109.0401225 | F4: ='7.6 Indicative bill'!H65 -> 111.9382941 | G4: ='7.6 Indicative bill'!I65 -> 114.9979528
A5: Small Business (2023-27 RoR) | B5: =+'7.6 Indicative bill'!D74 -> 200.7281 | C5: =+'7.6 Indicative bill'!E74 -> 178.2178747 | D5: =+'7.6 Indicative bill'!F74 -> 180.2966198 | E5: =+'7.6 Indicative bill'!G74 -> 184.6989501 | F5: =+'7.6 Indicative bill'!H74 -> 189.6080535 | G5: =+'7.6 Indicative bill'!I74 -> 194.7906941
A6: Residential | C6: =C4-B4 -> -13.289289 | D6: =D4-C4 -> 1.227222045 | E6: 2.598989494 | F6: 2.898171525 | G6: 3.059658784
A7: Small Business | C7: =C5-B5 -> -22.5102253 | D7: 2.078745125 | E7: 4.402330258 | F7: 4.909103415 | G7: 5.182640589
A9: Transmission Component ($ Nominal) | B9: 2021/22 | C9: 2022/23 | D9: 2023/24 | E9: 2024/25 | F9: 2025/26 | G9: 2026/27
A10: Residential (2018-22 RoR) | B10: 115.2970201 | C10: 123.4186183 | D10: 126.1955373 | E10: 129.0349369 | F10: 131.9382229 | G10: 134.9068329
A11: Small Business (2018-22 RoR) | B11: 195.2972728 | C11: 209.0541417 | D11: 213.7578599 | E11: 218.5674117 | F11: 223.4851785 | G11: 228.513595
